﻿Department Family,Entity,Date,Expense Type,Expense Area,Supplier,Transaction Number,AP Amount,Supplier Postcode
Department of Health,NHS Sheffield CCG,31/07/2021,Clinical&Medical-Commercial Sector,PATIENT TRANSPORT,PREMIER CARE DIRECT LTD,37259918,112480.55,DN4 5NU
Department of Health,NHS Sheffield CCG,31/07/2021,Clinical&Medical-Independent Sector,Mental Health Services - S117 Mental Health,MOORVILLE RESIDENTIAL,37259922,36553.96,S10 5FA
Department of Health,NHS Sheffield CCG,31/07/2021,Cont Care-Learning Disab(<65),CHC ADULT FULLY FUNDED,MOORVILLE RESIDENTIAL,37259922,9171.66,S10 5FA
Department of Health,NHS Sheffield CCG,31/07/2021,Cont Care-Learning Disab(<65),CHC ADULT JOINT FUNDED,MOORVILLE RESIDENTIAL,37259922,4333.18,S10 5FA
Department of Health,NHS Sheffield CCG,31/07/2021,Cont Care-Mental Health (<65),CHC ADULT JOINT FUNDED,MOORVILLE RESIDENTIAL,37259922,506.23,S10 5FA
Department of Health,NHS Sheffield CCG,31/07/2021,Clinical&Medical-Othe Public Sector,MENTAL HEALTH SERVICES - OTHER,UNIVERSITY OF SHEFFIELD,37259924,47729.76,S10 2TN
Department of Health,NHS Sheffield CCG,31/07/2021,Clinical&Medical-Independent Sector,ACUTE COMMISSIONING,BMI HEALTHCARE LTD,37259938,47095.63,SK3 0XN
Department of Health,NHS Sheffield CCG,31/07/2021,Clinical&Medical-Independent Sector,ACUTE COMMISSIONING,CLAREMONT HOSPITAL,37272705,-29405.08,S10 5UB
Department of Health,NHS Sheffield CCG,31/07/2021,Computer Software/License,PRIMARY CARE IT,ACCURX LTD,37287331,26320.58,N1 5AA
Department of Health,NHS Sheffield CCG,31/07/2021,Participation Fees,BEREAVEMENT SERVICE,ROTHERHAM DONCASTER AND SOUTH HUMBER NHS FOUNDATION TRUST,37287337,-50000,DN4 8QN
Department of Health,NHS Sheffield CCG,31/07/2021,C&M-GMS C&M-APMS PCN DES Physician Assoc,PRC DELEGATED CO-COMMISSIONING,PRIMARY CARE SHEFFIELD LTD,37287339,7627.9,S9 4EU
Department of Health,NHS Sheffield CCG,31/07/2021,C&M-GMS PCN DES Clin Pharmacist,PRC DELEGATED CO-COMMISSIONING,PRIMARY CARE SHEFFIELD LTD,37287339,5825.93,S9 4EU
Department of Health,NHS Sheffield CCG,31/07/2021,C&M-GMS PCN DES Physiotherapist,PRC DELEGATED CO-COMMISSIONING,PRIMARY CARE SHEFFIELD LTD,37287339,6312.75,S9 4EU
Department of Health,NHS Sheffield CCG,31/07/2021,C&M-GMS PCN DES Soc Prescribing,PRC DELEGATED CO-COMMISSIONING,PRIMARY CARE SHEFFIELD LTD,37287339,5315,S9 4EU
Department of Health,NHS Sheffield CCG,31/07/2021,C&M-PCN DES DIETICIANS,PRC DELEGATED CO-COMMISSIONING,PRIMARY CARE SHEFFIELD LTD,37287339,4160.08,S9 4EU
Department of Health,NHS Sheffield CCG,31/07/2021,C&M-PCN DES HEALTH AND WELLBEING COACH,PRC DELEGATED CO-COMMISSIONING,PRIMARY CARE SHEFFIELD LTD,37287339,1604.06,S9 4EU
Department of Health,NHS Sheffield CCG,31/07/2021,C&M-PCN DES PHARMACY TECHNICIANS,PRC DELEGATED CO-COMMISSIONING,PRIMARY CARE SHEFFIELD LTD,37287339,2096.25,S9 4EU
Department of Health,NHS Sheffield CCG,31/07/2021,Clinical&Medical-Voluntary Sector,COMMISSIONING - NON ACUTE,INSIGNIA HEALTH LLC,37297514,26012.65324,XXX XXX
Department of Health,NHS Sheffield CCG,31/07/2021,Computer Software/License,CONTRACT MANAGEMENT,ADVANCED DIGITAL INSTITUTE,37330839,97223.75,BD18 3LA
Department of Health,NHS Sheffield CCG,31/07/2021,Computer Software/License,CONTRACT MANAGEMENT,ADVANCED DIGITAL INSTITUTE,37330839,19444.75,BD18 3LA
Department of Health,NHS Sheffield CCG,31/07/2021,Cont Care-Physical Disab (65+),CHC ADULT FULLY FUNDED,SHEFFIELD CITY COUNCIL,37332749,627641.57,S1 1UJ
Department of Health,NHS Sheffield CCG,31/07/2021,Cont Care- Children,CHC CHILDREN,SHEFFIELD CITY COUNCIL,37332753,83662.83,S1 1UJ
Department of Health,NHS Sheffield CCG,31/07/2021,C&M-APMS Contract Value,PRC DELEGATED CO-COMMISSIONING,CLOVER CITY PRACTICE,37339874,33268.63,S9 4QH
Department of Health,NHS Sheffield CCG,31/07/2021,C&M-APMS PCN DES Participation,PRC DELEGATED CO-COMMISSIONING,CLOVER CITY PRACTICE,37339874,592.77,S9 4QH
Department of Health,NHS Sheffield CCG,31/07/2021,C&M-APMS QOF Aspiration,PRC DELEGATED CO-COMMISSIONING,CLOVER CITY PRACTICE,37339874,2087.76,S9 4QH
Department of Health,NHS Sheffield CCG,31/07/2021,C&M-PMS Contract Value,PRC DELEGATED CO-COMMISSIONING,WINCOBANK MEDICAL CENTRE,37339876,65910.29,S9 1DJ
Department of Health,NHS Sheffield CCG,31/07/2021,C&M-PMS Out of Hours Opt Outs,PRC DELEGATED CO-COMMISSIONING,WINCOBANK MEDICAL CENTRE,37339876,14.65,S9 1DJ
Department of Health,NHS Sheffield CCG,31/07/2021,C&M-PMS PCN DES Participation,PRC DELEGATED CO-COMMISSIONING,WINCOBANK MEDICAL CENTRE,37339876,1191.11,S9 1DJ
Department of Health,NHS Sheffield CCG,31/07/2021,C&M-PMS Prem Healthcentre Rent,PRC DELEGATED CO-COMMISSIONING,WINCOBANK MEDICAL CENTRE,37339876,47262.38,S9 1DJ
Department of Health,NHS Sheffield CCG,31/07/2021,C&M-PMS QOF Aspiration,PRC DELEGATED CO-COMMISSIONING,WINCOBANK MEDICAL CENTRE,37339876,6971.47,S9 1DJ
Department of Health,NHS Sheffield CCG,31/07/2021,C&M-PMS Contract Value,PRC DELEGATED CO-COMMISSIONING,FOXHILL MEDICAL CENTRE SHEFFIELD,37339878,53451.66,S6 1GA
Department of Health,NHS Sheffield CCG,31/07/2021,C&M-PMS Funding Differential Review,PRC DELEGATED CO-COMMISSIONING,FOXHILL MEDICAL CENTRE SHEFFIELD,37339878,1157.94,S6 1GA
Department of Health,NHS Sheffield CCG,31/07/2021,C&M-PMS Out of Hours Opt Outs,PRC DELEGATED CO-COMMISSIONING,FOXHILL MEDICAL CENTRE SHEFFIELD,37339878,11.5,S6 1GA
Department of Health,NHS Sheffield CCG,31/07/2021,C&M-PMS PCN DES Participation,PRC DELEGATED CO-COMMISSIONING,FOXHILL MEDICAL CENTRE SHEFFIELD,37339878,965.57,S6 1GA
Department of Health,NHS Sheffield CCG,31/07/2021,C&M-PMS Prem Healthcentre Rent,PRC DELEGATED CO-COMMISSIONING,FOXHILL MEDICAL CENTRE SHEFFIELD,37339878,48311.4,S6 1GA
Department of Health,NHS Sheffield CCG,31/07/2021,C&M-PMS QOF Aspiration,PRC DELEGATED CO-COMMISSIONING,FOXHILL MEDICAL CENTRE SHEFFIELD,37339878,6019.72,S6 1GA
Department of Health,NHS Sheffield CCG,31/07/2021,C&M-PMS Contract Value,PRC DELEGATED CO-COMMISSIONING,WOODHOUSE HEALTH CENTRE,37339880,103951.25,S13 7LY
Department of Health,NHS Sheffield CCG,31/07/2021,C&M-PMS DES Learn Dsblty Hlth Chk,PRC DELEGATED CO-COMMISSIONING,WOODHOUSE HEALTH CENTRE,37339880,280,S13 7LY
Department of Health,NHS Sheffield CCG,31/07/2021,C&M-PMS Funding Differential Review,PRC DELEGATED CO-COMMISSIONING,WOODHOUSE HEALTH CENTRE,37339880,2095.91,S13 7LY
Department of Health,NHS Sheffield CCG,31/07/2021,C&M-PMS Out of Hours Opt Outs,PRC DELEGATED CO-COMMISSIONING,WOODHOUSE HEALTH CENTRE,37339880,26.41,S13 7LY
Department of Health,NHS Sheffield CCG,31/07/2021,C&M-PMS PCN DES Participation,PRC DELEGATED CO-COMMISSIONING,WOODHOUSE HEALTH CENTRE,37339880,1880.78,S13 7LY
Department of Health,NHS Sheffield CCG,31/07/2021,C&M-PMS PCO Other,PRC DELEGATED CO-COMMISSIONING,WOODHOUSE HEALTH CENTRE,37339880,743.9,S13 7LY
Department of Health,NHS Sheffield CCG,31/07/2021,C&M-PMS Prem Notional Rent,PRC DELEGATED CO-COMMISSIONING,WOODHOUSE HEALTH CENTRE,37339880,6338.58,S13 7LY
Department of Health,NHS Sheffield CCG,31/07/2021,C&M-PMS Prem Rates,PRC DELEGATED CO-COMMISSIONING,WOODHOUSE HEALTH CENTRE,37339880,1459,S13 7LY
Department of Health,NHS Sheffield CCG,31/07/2021,C&M-PMS QOF Aspiration,PRC DELEGATED CO-COMMISSIONING,WOODHOUSE HEALTH CENTRE,37339880,15023.58,S13 7LY
Department of Health,NHS Sheffield CCG,31/07/2021,C&M-PMS Contract Value,PRC DELEGATED CO-COMMISSIONING,GLEADLESS MEDICAL CENTRE,37339882,71125.01,S14 1PQ
Department of Health,NHS Sheffield CCG,31/07/2021,C&M-PMS Funding Differential Review,PRC DELEGATED CO-COMMISSIONING,GLEADLESS MEDICAL CENTRE,37339882,1547.97,S14 1PQ
Department of Health,NHS Sheffield CCG,31/07/2021,C&M-PMS Out of Hours Opt Outs,PRC DELEGATED CO-COMMISSIONING,GLEADLESS MEDICAL CENTRE,37339882,42.2,S14 1PQ
Department of Health,NHS Sheffield CCG,31/07/2021,C&M-PMS PCN DES Participation,PRC DELEGATED CO-COMMISSIONING,GLEADLESS MEDICAL CENTRE,37339882,1285.55,S14 1PQ
Department of Health,NHS Sheffield CCG,31/07/2021,C&M-PMS PCO Other,PRC DELEGATED CO-COMMISSIONING,GLEADLESS MEDICAL CENTRE,37339882,556.4,S14 1PQ
Department of Health,NHS Sheffield CCG,31/07/2021,C&M-PMS Prem Notional Rent,PRC DELEGATED CO-COMMISSIONING,GLEADLESS MEDICAL CENTRE,37339882,6885.42,S14 1PQ
Department of Health,NHS Sheffield CCG,31/07/2021,C&M-PMS Prem Rates,PRC DELEGATED CO-COMMISSIONING,GLEADLESS MEDICAL CENTRE,37339882,1210,S14 1PQ
Department of Health,NHS Sheffield CCG,31/07/2021,C&M-PMS Prem Water Rates,PRC DELEGATED CO-COMMISSIONING,GLEADLESS MEDICAL CENTRE,37339882,241.05,S14 1PQ
Department of Health,NHS Sheffield CCG,31/07/2021,C&M-PMS QOF Aspiration,PRC DELEGATED CO-COMMISSIONING,GLEADLESS MEDICAL CENTRE,37339882,8062.34,S14 1PQ
Department of Health,NHS Sheffield CCG,31/07/2021,C&M-PMS Contract Value,PRC DELEGATED CO-COMMISSIONING,GLEADLESS MEDICAL CENTRE,37339883,-1280.19,S14 1PQ
Department of Health,NHS Sheffield CCG,31/07/2021,C&M-PMS GP Statutory Levy,PRC DELEGATED CO-COMMISSIONING,GLEADLESS MEDICAL CENTRE,37339883,-307.06,S14 1PQ
Department of Health,NHS Sheffield CCG,31/07/2021,C&M-PMS Out of Hours Opt Outs,PRC DELEGATED CO-COMMISSIONING,GLEADLESS MEDICAL CENTRE,37339883,-3344.99,S14 1PQ
Department of Health,NHS Sheffield CCG,31/07/2021,C&M-PMS Contract Value,PRC DELEGATED CO-COMMISSIONING,HACKENTHORPE MEDICAL CENTRE,37339885,51366.12,S12 4LA
Department of Health,NHS Sheffield CCG,31/07/2021,C&M-PMS Out of Hours Opt Outs,PRC DELEGATED CO-COMMISSIONING,HACKENTHORPE MEDICAL CENTRE,37339885,12.46,S12 4LA
Department of Health,NHS Sheffield CCG,31/07/2021,C&M-PMS PCN DES Participation,PRC DELEGATED CO-COMMISSIONING,HACKENTHORPE MEDICAL CENTRE,37339885,930.28,S12 4LA
Department of Health,NHS Sheffield CCG,31/07/2021,C&M-PMS PCO Other,PRC DELEGATED CO-COMMISSIONING,HACKENTHORPE MEDICAL CENTRE,37339885,434.8,S12 4LA
Department of Health,NHS Sheffield CCG,31/07/2021,C&M-PMS Prem Notional Rent,PRC DELEGATED CO-COMMISSIONING,HACKENTHORPE MEDICAL CENTRE,37339885,5116.67,S12 4LA
Department of Health,NHS Sheffield CCG,31/07/2021,C&M-PMS Prem Rates,PRC DELEGATED CO-COMMISSIONING,HACKENTHORPE MEDICAL CENTRE,37339885,861,S12 4LA
Department of Health,NHS Sheffield CCG,31/07/2021,C&M-PMS Prem Water Rates,PRC DELEGATED CO-COMMISSIONING,HACKENTHORPE MEDICAL CENTRE,37339885,184.4,S12 4LA
Department of Health,NHS Sheffield CCG,31/07/2021,C&M-PMS QOF Aspiration,PRC DELEGATED CO-COMMISSIONING,HACKENTHORPE MEDICAL CENTRE,37339885,7164.43,S12 4LA
Department of Health,NHS Sheffield CCG,31/07/2021,C&M-PMS Contract Value,PRC DELEGATED CO-COMMISSIONING,MANCHESTER ROAD SURGERY SHEFFIELD,37339887,35267.22,S10 5PN
Department of Health,NHS Sheffield CCG,31/07/2021,C&M-PMS Out of Hours Opt Outs,PRC DELEGATED CO-COMMISSIONING,MANCHESTER ROAD SURGERY SHEFFIELD,37339887,3.31,S10 5PN
Department of Health,NHS Sheffield CCG,31/07/2021,C&M-PMS PCN DES Participation,PRC DELEGATED CO-COMMISSIONING,MANCHESTER ROAD SURGERY SHEFFIELD,37339887,637.95,S10 5PN
Department of Health,NHS Sheffield CCG,31/07/2021,C&M-PMS Prem Cost Rent,PRC DELEGATED CO-COMMISSIONING,MANCHESTER ROAD SURGERY SHEFFIELD,37339887,3077.32,S10 5PN
Department of Health,NHS Sheffield CCG,31/07/2021,C&M-PMS Prem Notional Rent,PRC DELEGATED CO-COMMISSIONING,MANCHESTER ROAD SURGERY SHEFFIELD,37339887,442.92,S10 5PN
Department of Health,NHS Sheffield CCG,31/07/2021,C&M-PMS Prem Rates,PRC DELEGATED CO-COMMISSIONING,MANCHESTER ROAD SURGERY SHEFFIELD,37339887,986,S10 5PN
Department of Health,NHS Sheffield CCG,31/07/2021,C&M-PMS Prem Water Rates,PRC DELEGATED CO-COMMISSIONING,MANCHESTER ROAD SURGERY SHEFFIELD,37339887,204.84,S10 5PN
Department of Health,NHS Sheffield CCG,31/07/2021,C&M-PMS QOF Aspiration,PRC DELEGATED CO-COMMISSIONING,MANCHESTER ROAD SURGERY SHEFFIELD,37339887,4335.38,S10 5PN
Department of Health,NHS Sheffield CCG,31/07/2021,C&M-PMS Contract Value,PRC DELEGATED CO-COMMISSIONING,MEADOWHEAD GROUP PRACTICE,37339889,163932.15,S8 7RL
Department of Health,NHS Sheffield CCG,31/07/2021,C&M-PMS Funding Differential Review,PRC DELEGATED CO-COMMISSIONING,MEADOWHEAD GROUP PRACTICE,37339889,1641.85,S8 7RL
Department of Health,NHS Sheffield CCG,31/07/2021,C&M-PMS PCN DES Participation,PRC DELEGATED CO-COMMISSIONING,MEADOWHEAD GROUP PRACTICE,37339889,2652.53,S8 7RL
Department of Health,NHS Sheffield CCG,31/07/2021,C&M-PMS Prem Actual Rent,PRC DELEGATED CO-COMMISSIONING,MEADOWHEAD GROUP PRACTICE,37339889,3358.33,S8 7RL
Department of Health,NHS Sheffield CCG,31/07/2021,C&M-PMS Prem Cost Rent,PRC DELEGATED CO-COMMISSIONING,MEADOWHEAD GROUP PRACTICE,37339889,3647.42,S8 7RL
Department of Health,NHS Sheffield CCG,31/07/2021,C&M-PMS Prem Healthcentre Rent,PRC DELEGATED CO-COMMISSIONING,MEADOWHEAD GROUP PRACTICE,37339889,41665.03,S8 7RL
Department of Health,NHS Sheffield CCG,31/07/2021,C&M-PMS Prem Notional Rent,PRC DELEGATED CO-COMMISSIONING,MEADOWHEAD GROUP PRACTICE,37339889,7374.29,S8 7RL
Department of Health,NHS Sheffield CCG,31/07/2021,C&M-PMS Prem Rates,PRC DELEGATED CO-COMMISSIONING,MEADOWHEAD GROUP PRACTICE,37339889,798,S8 7RL
Department of Health,NHS Sheffield CCG,31/07/2021,C&M-PMS QOF Aspiration,PRC DELEGATED CO-COMMISSIONING,MEADOWHEAD GROUP PRACTICE,37339889,18549.4,S8 7RL
Department of Health,NHS Sheffield CCG,31/07/2021,C&M-PMS Contract Value,PRC DELEGATED CO-COMMISSIONING,MEADOWHEAD GROUP PRACTICE,37339890,-751.85,S8 7RL
Department of Health,NHS Sheffield CCG,31/07/2021,C&M-PMS GP Statutory Levy,PRC DELEGATED CO-COMMISSIONING,MEADOWHEAD GROUP PRACTICE,37339890,-655.1,S8 7RL
Department of Health,NHS Sheffield CCG,31/07/2021,C&M-PMS Out of Hours Opt Outs,PRC DELEGATED CO-COMMISSIONING,MEADOWHEAD GROUP PRACTICE,37339890,-7700.25,S8 7RL
Department of Health,NHS Sheffield CCG,31/07/2021,C&M-PMS Prem Actual Rent,PRC DELEGATED CO-COMMISSIONING,MEADOWHEAD GROUP PRACTICE,37339890,-3358.33,S8 7RL
Department of Health,NHS Sheffield CCG,31/07/2021,C&M-PMS Prem Cost Rent,PRC DELEGATED CO-COMMISSIONING,MEADOWHEAD GROUP PRACTICE,37339890,-3647.42,S8 7RL
Department of Health,NHS Sheffield CCG,31/07/2021,C&M-PMS Prem Healthcentre Rent,PRC DELEGATED CO-COMMISSIONING,MEADOWHEAD GROUP PRACTICE,37339890,-767.14,S8 7RL
Department of Health,NHS Sheffield CCG,31/07/2021,C&M-PMS QOF Achievement,PRC DELEGATED CO-COMMISSIONING,MEADOWHEAD GROUP PRACTICE,37339890,-20989.37,S8 7RL
Department of Health,NHS Sheffield CCG,31/07/2021,C&M-PMS Contract Value,PRC DELEGATED CO-COMMISSIONING,NETHERGREEN SURGERY,37339891,67810.35,S11 7EJ
Department of Health,NHS Sheffield CCG,31/07/2021,C&M-PMS DES Learn Dsblty Hlth Chk,PRC DELEGATED CO-COMMISSIONING,NETHERGREEN SURGERY,37339891,280,S11 7EJ
Department of Health,NHS Sheffield CCG,31/07/2021,C&M-PMS Funding Differential Review,PRC DELEGATED CO-COMMISSIONING,NETHERGREEN SURGERY,37339891,1369.87,S11 7EJ
Department of Health,NHS Sheffield CCG,31/07/2021,C&M-PMS PCN DES Participation,PRC DELEGATED CO-COMMISSIONING,NETHERGREEN SURGERY,37339891,1216.05,S11 7EJ
Department of Health,NHS Sheffield CCG,31/07/2021,C&M-PMS PCO Locum Sickness,PRC DELEGATED CO-COMMISSIONING,NETHERGREEN SURGERY,37339891,5385.66,S11 7EJ
Department of Health,NHS Sheffield CCG,31/07/2021,C&M-PMS Prem Cost Rent,PRC DELEGATED CO-COMMISSIONING,NETHERGREEN SURGERY,37339891,5057.33,S11 7EJ
Department of Health,NHS Sheffield CCG,31/07/2021,C&M-PMS Prem Rates,PRC DELEGATED CO-COMMISSIONING,NETHERGREEN SURGERY,37339891,1285,S11 7EJ
Department of Health,NHS Sheffield CCG,31/07/2021,C&M-PMS Prem Water Rates,PRC DELEGATED CO-COMMISSIONING,NETHERGREEN SURGERY,37339891,673,S11 7EJ
Department of Health,NHS Sheffield CCG,31/07/2021,C&M-PMS QOF Aspiration,PRC DELEGATED CO-COMMISSIONING,NETHERGREEN SURGERY,37339891,7008.62,S11 7EJ
Department of Health,NHS Sheffield CCG,31/07/2021,C&M-PMS Contract Value,PRC DELEGATED CO-COMMISSIONING,MOSBOROUGH HEALTH CENTRE,37339893,53688.83,S20 5BQ
Department of Health,NHS Sheffield CCG,31/07/2021,C&M-PMS DES Learn Dsblty Hlth Chk,PRC DELEGATED CO-COMMISSIONING,MOSBOROUGH HEALTH CENTRE,37339893,420,S20 5BQ
Department of Health,NHS Sheffield CCG,31/07/2021,C&M-PMS Out of Hours Opt Outs,PRC DELEGATED CO-COMMISSIONING,MOSBOROUGH HEALTH CENTRE,37339893,6.33,S20 5BQ
Department of Health,NHS Sheffield CCG,31/07/2021,C&M-PMS PCN DES Participation,PRC DELEGATED CO-COMMISSIONING,MOSBOROUGH HEALTH CENTRE,37339893,972.62,S20 5BQ
Department of Health,NHS Sheffield CCG,31/07/2021,C&M-PMS PCO Other,PRC DELEGATED CO-COMMISSIONING,MOSBOROUGH HEALTH CENTRE,37339893,447.8,S20 5BQ
Department of Health,NHS Sheffield CCG,31/07/2021,C&M-PMS Prem Notional Rent,PRC DELEGATED CO-COMMISSIONING,MOSBOROUGH HEALTH CENTRE,37339893,6639.59,S20 5BQ
Department of Health,NHS Sheffield CCG,31/07/2021,C&M-PMS Prem Rates,PRC DELEGATED CO-COMMISSIONING,MOSBOROUGH HEALTH CENTRE,37339893,711,S20 5BQ
Department of Health,NHS Sheffield CCG,31/07/2021,C&M-PMS QOF Aspiration,PRC DELEGATED CO-COMMISSIONING,MOSBOROUGH HEALTH CENTRE,37339893,6344.52,S20 5BQ
Department of Health,NHS Sheffield CCG,31/07/2021,C&M-PMS Contract Value,PRC DELEGATED CO-COMMISSIONING,BARNSLEY ROAD SURGERY,37339895,21464.94,S5 0QJ
Department of Health,NHS Sheffield CCG,31/07/2021,C&M-PMS Funding Differential Review,PRC DELEGATED CO-COMMISSIONING,BARNSLEY ROAD SURGERY,37339895,506.44,S5 0QJ
Department of Health,NHS Sheffield CCG,31/07/2021,C&M-PMS PCN DES Participation,PRC DELEGATED CO-COMMISSIONING,BARNSLEY ROAD SURGERY,37339895,387.62,S5 0QJ
Department of Health,NHS Sheffield CCG,31/07/2021,C&M-PMS Prem Notional Rent,PRC DELEGATED CO-COMMISSIONING,BARNSLEY ROAD SURGERY,37339895,4311.17,S5 0QJ
Department of Health,NHS Sheffield CCG,31/07/2021,C&M-PMS Prem Rates,PRC DELEGATED CO-COMMISSIONING,BARNSLEY ROAD SURGERY,37339895,674,S5 0QJ
Department of Health,NHS Sheffield CCG,31/07/2021,C&M-PMS QOF Aspiration,PRC DELEGATED CO-COMMISSIONING,BARNSLEY ROAD SURGERY,37339895,2443.92,S5 0QJ
Department of Health,NHS Sheffield CCG,31/07/2021,C&M-PMS Contract Value,PRC DELEGATED CO-COMMISSIONING,RUSTLINGS ROAD MEDICAL CENTRE,37339898,30591.27,S11 7AB
Department of Health,NHS Sheffield CCG,31/07/2021,C&M-PMS DES Learn Dsblty Hlth Chk,PRC DELEGATED CO-COMMISSIONING,RUSTLINGS ROAD MEDICAL CENTRE,37339898,560,S11 7AB
Department of Health,NHS Sheffield CCG,31/07/2021,C&M-PMS Funding Differential Review,PRC DELEGATED CO-COMMISSIONING,RUSTLINGS ROAD MEDICAL CENTRE,37339898,565.04,S11 7AB
Department of Health,NHS Sheffield CCG,31/07/2021,C&M-PMS PCN DES Participation,PRC DELEGATED CO-COMMISSIONING,RUSTLINGS ROAD MEDICAL CENTRE,37339898,544.7,S11 7AB
Department of Health,NHS Sheffield CCG,31/07/2021,C&M-PMS PCO Other,PRC DELEGATED CO-COMMISSIONING,RUSTLINGS ROAD MEDICAL CENTRE,37339898,317.8,S11 7AB
Department of Health,NHS Sheffield CCG,31/07/2021,C&M-PMS Prem Notional Rent,PRC DELEGATED CO-COMMISSIONING,RUSTLINGS ROAD MEDICAL CENTRE,37339898,1312.5,S11 7AB
Department of Health,NHS Sheffield CCG,31/07/2021,C&M-PMS QOF Aspiration,PRC DELEGATED CO-COMMISSIONING,RUSTLINGS ROAD MEDICAL CENTRE,37339898,3139.32,S11 7AB
Department of Health,NHS Sheffield CCG,31/07/2021,C&M-PMS Contract Value,PRC DELEGATED CO-COMMISSIONING,RICHMOND MEDICAL CENTRE,37339900,73326.26,S13 8NA
Department of Health,NHS Sheffield CCG,31/07/2021,C&M-PMS DES Learn Dsblty Hlth Chk,PRC DELEGATED CO-COMMISSIONING,RICHMOND MEDICAL CENTRE,37339900,140,S13 8NA
Department of Health,NHS Sheffield CCG,31/07/2021,C&M-PMS PCN DES Participation,PRC DELEGATED CO-COMMISSIONING,RICHMOND MEDICAL CENTRE,37339900,1317.91,S13 8NA
Department of Health,NHS Sheffield CCG,31/07/2021,C&M-PMS PCO Other,PRC DELEGATED CO-COMMISSIONING,RICHMOND MEDICAL CENTRE,37339900,576.4,S13 8NA
Department of Health,NHS Sheffield CCG,31/07/2021,C&M-PMS Prem Notional Rent,PRC DELEGATED CO-COMMISSIONING,RICHMOND MEDICAL CENTRE,37339900,6429.17,S13 8NA
Department of Health,NHS Sheffield CCG,31/07/2021,C&M-PMS Prem Rates,PRC DELEGATED CO-COMMISSIONING,RICHMOND MEDICAL CENTRE,37339900,1098,S13 8NA
Department of Health,NHS Sheffield CCG,31/07/2021,C&M-PMS QOF Aspiration,PRC DELEGATED CO-COMMISSIONING,RICHMOND MEDICAL CENTRE,37339900,8858.87,S13 8NA
Department of Health,NHS Sheffield CCG,31/07/2021,C&M-PMS Contract Value,PRC DELEGATED CO-COMMISSIONING,OWLTHORPE MEDICAL CENTRE,37339904,34558.52,S20 6PD
Department of Health,NHS Sheffield CCG,31/07/2021,C&M-PMS PCN DES Participation,PRC DELEGATED CO-COMMISSIONING,OWLTHORPE MEDICAL CENTRE,37339904,625.13,S20 6PD
Department of Health,NHS Sheffield CCG,31/07/2021,C&M-PMS Prem Actual Rent,PRC DELEGATED CO-COMMISSIONING,OWLTHORPE MEDICAL CENTRE,37339904,7539.58,S20 6PD
Department of Health,NHS Sheffield CCG,31/07/2021,C&M-PMS Prem Rates,PRC DELEGATED CO-COMMISSIONING,OWLTHORPE MEDICAL CENTRE,37339904,4091.5,S20 6PD
Department of Health,NHS Sheffield CCG,31/07/2021,C&M-PMS Prem Water Rates,PRC DELEGATED CO-COMMISSIONING,OWLTHORPE MEDICAL CENTRE,37339904,93.16,S20 6PD
Department of Health,NHS Sheffield CCG,31/07/2021,C&M-PMS QOF Aspiration,PRC DELEGATED CO-COMMISSIONING,OWLTHORPE MEDICAL CENTRE,37339904,4236.51,S20 6PD
Department of Health,NHS Sheffield CCG,31/07/2021,C&M-PMS Contract Value,PRC DELEGATED CO-COMMISSIONING,FORGE HEALTH GROUP,37339906,-650.39,S3 9DL
Department of Health,NHS Sheffield CCG,31/07/2021,C&M-PMS GP Statutory Levy,PRC DELEGATED CO-COMMISSIONING,FORGE HEALTH GROUP,37339906,-527.07,S3 9DL
Department of Health,NHS Sheffield CCG,31/07/2021,C&M-PMS Out of Hours Opt Outs,PRC DELEGATED CO-COMMISSIONING,FORGE HEALTH GROUP,37339906,-5984.47,S3 9DL
Department of Health,NHS Sheffield CCG,31/07/2021,C&M-PMS Contract Value,PRC DELEGATED CO-COMMISSIONING,PORTER BROOK MEDICAL CENTRE,37339907,167407.36,S11 8HN
Department of Health,NHS Sheffield CCG,31/07/2021,C&M-PMS Funding Differential Review,PRC DELEGATED CO-COMMISSIONING,PORTER BROOK MEDICAL CENTRE,37339907,3636.27,S11 8HN
Department of Health,NHS Sheffield CCG,31/07/2021,C&M-PMS Out of Hours Opt Outs,PRC DELEGATED CO-COMMISSIONING,PORTER BROOK MEDICAL CENTRE,37339907,57.31,S11 8HN
Department of Health,NHS Sheffield CCG,31/07/2021,C&M-PMS PCN DES Participation,PRC DELEGATED CO-COMMISSIONING,PORTER BROOK MEDICAL CENTRE,37339907,3019.37,S11 8HN
Department of Health,NHS Sheffield CCG,31/07/2021,C&M-PMS Prem Actual Rent,PRC DELEGATED CO-COMMISSIONING,PORTER BROOK MEDICAL CENTRE,37339907,1666.67,S11 8HN
Department of Health,NHS Sheffield CCG,31/07/2021,C&M-PMS Prem Notional Rent,PRC DELEGATED CO-COMMISSIONING,PORTER BROOK MEDICAL CENTRE,37339907,14717.45,S11 8HN
Department of Health,NHS Sheffield CCG,31/07/2021,C&M-PMS Prem Rates,PRC DELEGATED CO-COMMISSIONING,PORTER BROOK MEDICAL CENTRE,37339907,1812,S11 8HN
Department of Health,NHS Sheffield CCG,31/07/2021,C&M-PMS QOF Aspiration,PRC DELEGATED CO-COMMISSIONING,PORTER BROOK MEDICAL CENTRE,37339907,11138.7,S11 8HN
Department of Health,NHS Sheffield CCG,31/07/2021,C&M-PMS Contract Value,PRC DELEGATED CO-COMMISSIONING,PORTER BROOK MEDICAL CENTRE,37339908,-2099.36,S11 8HN
Department of Health,NHS Sheffield CCG,31/07/2021,C&M-PMS GP Statutory Levy,PRC DELEGATED CO-COMMISSIONING,PORTER BROOK MEDICAL CENTRE,37339908,-971.5,S11 8HN
Department of Health,NHS Sheffield CCG,31/07/2021,C&M-PMS Out of Hours Opt Outs,PRC DELEGATED CO-COMMISSIONING,PORTER BROOK MEDICAL CENTRE,37339908,-7856.53,S11 8HN
Department of Health,NHS Sheffield CCG,31/07/2021,C&M-PMS Prem Notional Rent,PRC DELEGATED CO-COMMISSIONING,PORTER BROOK MEDICAL CENTRE,37339908,-1666.67,S11 8HN
Department of Health,NHS Sheffield CCG,31/07/2021,C&M-PMS Contract Value,PRC DELEGATED CO-COMMISSIONING,PAGE HALL MEDICAL CENTRE,37339909,60848.74,S4 8GB
Department of Health,NHS Sheffield CCG,31/07/2021,C&M-PMS DES Learn Dsblty Hlth Chk,PRC DELEGATED CO-COMMISSIONING,PAGE HALL MEDICAL CENTRE,37339909,420,S4 8GB
Department of Health,NHS Sheffield CCG,31/07/2021,C&M-PMS Funding Differential Review,PRC DELEGATED CO-COMMISSIONING,PAGE HALL MEDICAL CENTRE,37339909,1161.37,S4 8GB
Department of Health,NHS Sheffield CCG,31/07/2021,C&M-PMS Out of Hours Opt Outs,PRC DELEGATED CO-COMMISSIONING,PAGE HALL MEDICAL CENTRE,37339909,7.32,S4 8GB
Department of Health,NHS Sheffield CCG,31/07/2021,C&M-PMS PCN DES Participation,PRC DELEGATED CO-COMMISSIONING,PAGE HALL MEDICAL CENTRE,37339909,1099.51,S4 8GB
Department of Health,NHS Sheffield CCG,31/07/2021,C&M-PMS Prem Notional Rent,PRC DELEGATED CO-COMMISSIONING,PAGE HALL MEDICAL CENTRE,37339909,4833.33,S4 8GB
Department of Health,NHS Sheffield CCG,31/07/2021,C&M-PMS Prem Rates,PRC DELEGATED CO-COMMISSIONING,PAGE HALL MEDICAL CENTRE,37339909,848,S4 8GB
Department of Health,NHS Sheffield CCG,31/07/2021,C&M-PMS QOF Aspiration,PRC DELEGATED CO-COMMISSIONING,PAGE HALL MEDICAL CENTRE,37339909,5333.21,S4 8GB
Department of Health,NHS Sheffield CCG,31/07/2021,C&M-PMS Contract Value,PRC DELEGATED CO-COMMISSIONING,BURNGREAVE SURGERY,37339913,59337.84,S3 9DA
Department of Health,NHS Sheffield CCG,31/07/2021,C&M-PMS DES Learn Dsblty Hlth Chk,PRC DELEGATED CO-COMMISSIONING,BURNGREAVE SURGERY,37339913,560,S3 9DA
Department of Health,NHS Sheffield CCG,31/07/2021,C&M-PMS Out of Hours Opt Outs,PRC DELEGATED CO-COMMISSIONING,BURNGREAVE SURGERY,37339913,19.65,S3 9DA
Department of Health,NHS Sheffield CCG,31/07/2021,C&M-PMS PCN DES Participation,PRC DELEGATED CO-COMMISSIONING,BURNGREAVE SURGERY,37339913,1072.06,S3 9DA
Department of Health,NHS Sheffield CCG,31/07/2021,C&M-PMS Prem Notional Rent,PRC DELEGATED CO-COMMISSIONING,BURNGREAVE SURGERY,37339913,6622.92,S3 9DA
Department of Health,NHS Sheffield CCG,31/07/2021,C&M-PMS Prem Rates,PRC DELEGATED CO-COMMISSIONING,BURNGREAVE SURGERY,37339913,2340,S3 9DA
Department of Health,NHS Sheffield CCG,31/07/2021,C&M-PMS Prem Water Rates,PRC DELEGATED CO-COMMISSIONING,BURNGREAVE SURGERY,37339913,302.48,S3 9DA
Department of Health,NHS Sheffield CCG,31/07/2021,C&M-PMS QOF Aspiration,PRC DELEGATED CO-COMMISSIONING,BURNGREAVE SURGERY,37339913,5671.9,S3 9DA
Department of Health,NHS Sheffield CCG,31/07/2021,C&M-PMS Contract Value,PRC DELEGATED CO-COMMISSIONING,BURNCROSS SURGERY,37339915,127123.64,S35 1RN
Department of Health,NHS Sheffield CCG,31/07/2021,C&M-PMS DES Learn Dsblty Hlth Chk,PRC DELEGATED CO-COMMISSIONING,BURNCROSS SURGERY,37339915,1260,S35 1RN
Department of Health,NHS Sheffield CCG,31/07/2021,C&M-PMS Funding Differential Review,PRC DELEGATED CO-COMMISSIONING,BURNCROSS SURGERY,37339915,2746.32,S35 1RN
Department of Health,NHS Sheffield CCG,31/07/2021,C&M-PMS PCN DES Participation,PRC DELEGATED CO-COMMISSIONING,BURNCROSS SURGERY,37339915,2296.43,S35 1RN
Department of Health,NHS Sheffield CCG,31/07/2021,C&M-PMS PCO Locum Sickness,PRC DELEGATED CO-COMMISSIONING,BURNCROSS SURGERY,37339915,12219.04,S35 1RN
Department of Health,NHS Sheffield CCG,31/07/2021,C&M-PMS Prem Notional Rent,PRC DELEGATED CO-COMMISSIONING,BURNCROSS SURGERY,37339915,14919.67,S35 1RN
Department of Health,NHS Sheffield CCG,31/07/2021,C&M-PMS QOF Aspiration,PRC DELEGATED CO-COMMISSIONING,BURNCROSS SURGERY,37339915,16606.07,S35 1RN
Department of Health,NHS Sheffield CCG,31/07/2021,C&M-PMS Contract Value,PRC DELEGATED CO-COMMISSIONING,BURNCROSS SURGERY,37339916,-1327.53,S35 1RN
Department of Health,NHS Sheffield CCG,31/07/2021,C&M-PMS GP Statutory Levy,PRC DELEGATED CO-COMMISSIONING,BURNCROSS SURGERY,37339916,-521.33,S35 1RN
Department of Health,NHS Sheffield CCG,31/07/2021,C&M-APMS Contract Value,PRC DELEGATED CO-COMMISSIONING,CLOVER GROUP PRACTICE,37339917,126289.47,S9 4QH
Department of Health,NHS Sheffield CCG,31/07/2021,C&M-APMS DES Learn Dsblty Hlth Chk,PRC DELEGATED CO-COMMISSIONING,CLOVER GROUP PRACTICE,37339917,140,S9 4QH
Department of Health,NHS Sheffield CCG,31/07/2021,C&M-APMS OOH Opt Outs,PRC DELEGATED CO-COMMISSIONING,CLOVER GROUP PRACTICE,37339917,664.89,S9 4QH
Department of Health,NHS Sheffield CCG,31/07/2021,C&M-APMS PCN DES Participation,PRC DELEGATED CO-COMMISSIONING,CLOVER GROUP PRACTICE,37339917,2290.04,S9 4QH
Department of Health,NHS Sheffield CCG,31/07/2021,C&M-APMS Prem Actual Rent,PRC DELEGATED CO-COMMISSIONING,CLOVER GROUP PRACTICE,37339917,5169.68,S9 4QH
Department of Health,NHS Sheffield CCG,31/07/2021,C&M-APMS Prem Healthcentre Rent,PRC DELEGATED CO-COMMISSIONING,CLOVER GROUP PRACTICE,37339917,49914.84,S9 4QH
Department of Health,NHS Sheffield CCG,31/07/2021,C&M-APMS Prem Notional Rent,PRC DELEGATED CO-COMMISSIONING,CLOVER GROUP PRACTICE,37339917,2804.17,S9 4QH
Department of Health,NHS Sheffield CCG,31/07/2021,C&M-APMS QOF Aspiration,PRC DELEGATED CO-COMMISSIONING,CLOVER GROUP PRACTICE,37339917,9965.6,S9 4QH
Department of Health,NHS Sheffield CCG,31/07/2021,C&M-APMS Contract Value,PRC DELEGATED CO-COMMISSIONING,CLOVER GROUP PRACTICE,37339918,-15079,S9 4QH
Department of Health,NHS Sheffield CCG,31/07/2021,C&M-APMS OOH Opt Outs,PRC DELEGATED CO-COMMISSIONING,CLOVER GROUP PRACTICE,37339918,-5957.96,S9 4QH
Department of Health,NHS Sheffield CCG,31/07/2021,C&M-PMS GP Statutory Levy,PRC DELEGATED CO-COMMISSIONING,CLOVER GROUP PRACTICE,37339918,-525.32,S9 4QH
Department of Health,NHS Sheffield CCG,31/07/2021,C&M-PMS Contract Value,PRC DELEGATED CO-COMMISSIONING,BIRLEY HEALTH CENTRE,37339919,67692.92,S12 3BP
Department of Health,NHS Sheffield CCG,31/07/2021,C&M-PMS PCN DES Participation,PRC DELEGATED CO-COMMISSIONING,BIRLEY HEALTH CENTRE,37339919,1224.59,S12 3BP
Department of Health,NHS Sheffield CCG,31/07/2021,C&M-PMS Prem Notional Rent,PRC DELEGATED CO-COMMISSIONING,BIRLEY HEALTH CENTRE,37339919,7600.58,S12 3BP
Department of Health,NHS Sheffield CCG,31/07/2021,C&M-PMS Prem Rates,PRC DELEGATED CO-COMMISSIONING,BIRLEY HEALTH CENTRE,37339919,895,S12 3BP
Department of Health,NHS Sheffield CCG,31/07/2021,C&M-PMS Prem Water Rates,PRC DELEGATED CO-COMMISSIONING,BIRLEY HEALTH CENTRE,37339919,42.61,S12 3BP
Department of Health,NHS Sheffield CCG,31/07/2021,C&M-PMS QOF Aspiration,PRC DELEGATED CO-COMMISSIONING,BIRLEY HEALTH CENTRE,37339919,8434.07,S12 3BP
Department of Health,NHS Sheffield CCG,31/07/2021,C&M-PMS Contract Value,PRC DELEGATED CO-COMMISSIONING,SLOAN MEDICAL CENTRE,37339921,102117.85,S8 0YH
Department of Health,NHS Sheffield CCG,31/07/2021,C&M-PMS Out of Hours Opt Outs,PRC DELEGATED CO-COMMISSIONING,SLOAN MEDICAL CENTRE,37339921,5.59,S8 0YH
Department of Health,NHS Sheffield CCG,31/07/2021,C&M-PMS PCN DES Participation,PRC DELEGATED CO-COMMISSIONING,SLOAN MEDICAL CENTRE,37339921,1849.06,S8 0YH
Department of Health,NHS Sheffield CCG,31/07/2021,C&M-PMS PCO Other,PRC DELEGATED CO-COMMISSIONING,SLOAN MEDICAL CENTRE,37339921,819.8,S8 0YH
Department of Health,NHS Sheffield CCG,31/07/2021,C&M-PMS Prem Actual Rent,PRC DELEGATED CO-COMMISSIONING,SLOAN MEDICAL CENTRE,37339921,47912.5,S8 0YH
Department of Health,NHS Sheffield CCG,31/07/2021,C&M-PMS Prem Notional Rent,PRC DELEGATED CO-COMMISSIONING,SLOAN MEDICAL CENTRE,37339921,747.5,S8 0YH
Department of Health,NHS Sheffield CCG,31/07/2021,C&M-PMS QOF Aspiration,PRC DELEGATED CO-COMMISSIONING,SLOAN MEDICAL CENTRE,37339921,11094.95,S8 0YH
Department of Health,NHS Sheffield CCG,31/07/2021,C&M-PMS Contract Value,PRC DELEGATED CO-COMMISSIONING,SOTHALL MEDICAL CENTRE,37339923,75689.4,S20 1HQ
Department of Health,NHS Sheffield CCG,31/07/2021,C&M-PMS DES Learn Dsblty Hlth Chk,PRC DELEGATED CO-COMMISSIONING,SOTHALL MEDICAL CENTRE,37339923,140,S20 1HQ
Department of Health,NHS Sheffield CCG,31/07/2021,C&M-PMS Out of Hours Opt Outs,PRC DELEGATED CO-COMMISSIONING,SOTHALL MEDICAL CENTRE,37339923,12.64,S20 1HQ
Department of Health,NHS Sheffield CCG,31/07/2021,C&M-PMS PCN DES Participation,PRC DELEGATED CO-COMMISSIONING,SOTHALL MEDICAL CENTRE,37339923,1370.05,S20 1HQ
Department of Health,NHS Sheffield CCG,31/07/2021,C&M-PMS PCO Other,PRC DELEGATED CO-COMMISSIONING,SOTHALL MEDICAL CENTRE,37339923,626.1,S20 1HQ
Department of Health,NHS Sheffield CCG,31/07/2021,C&M-PMS Prem Notional Rent,PRC DELEGATED CO-COMMISSIONING,SOTHALL MEDICAL CENTRE,37339923,5116.67,S20 1HQ
Department of Health,NHS Sheffield CCG,31/07/2021,C&M-PMS Prem Rates,PRC DELEGATED CO-COMMISSIONING,SOTHALL MEDICAL CENTRE,37339923,617,S20 1HQ
Department of Health,NHS Sheffield CCG,31/07/2021,C&M-PMS Prem Water Rates,PRC DELEGATED CO-COMMISSIONING,SOTHALL MEDICAL CENTRE,37339923,134.91,S20 1HQ
Department of Health,NHS Sheffield CCG,31/07/2021,C&M-PMS QOF Aspiration,PRC DELEGATED CO-COMMISSIONING,SOTHALL MEDICAL CENTRE,37339923,9478.91,S20 1HQ
Department of Health,NHS Sheffield CCG,31/07/2021,C&M-PMS Contract Value,PRC DELEGATED CO-COMMISSIONING,SOUTHEY GREEN MEDICAL CENTRE,37339925,26049.77,S5 7QB
Department of Health,NHS Sheffield CCG,31/07/2021,C&M-PMS Funding Differential Review,PRC DELEGATED CO-COMMISSIONING,SOUTHEY GREEN MEDICAL CENTRE,37339925,612.28,S5 7QB
Department of Health,NHS Sheffield CCG,31/07/2021,C&M-PMS Out of Hours Opt Outs,PRC DELEGATED CO-COMMISSIONING,SOUTHEY GREEN MEDICAL CENTRE,37339925,25.34,S5 7QB
Department of Health,NHS Sheffield CCG,31/07/2021,C&M-PMS PCN DES Participation,PRC DELEGATED CO-COMMISSIONING,SOUTHEY GREEN MEDICAL CENTRE,37339925,470.48,S5 7QB
Department of Health,NHS Sheffield CCG,31/07/2021,C&M-PMS Prem Notional Rent,PRC DELEGATED CO-COMMISSIONING,SOUTHEY GREEN MEDICAL CENTRE,37339925,3362.5,S5 7QB
Department of Health,NHS Sheffield CCG,31/07/2021,C&M-PMS QOF Aspiration,PRC DELEGATED CO-COMMISSIONING,SOUTHEY GREEN MEDICAL CENTRE,37339925,2952.99,S5 7QB
Department of Health,NHS Sheffield CCG,31/07/2021,C&M-PMS Contract Value,PRC DELEGATED CO-COMMISSIONING,HEALTH CARE SURGERY,37339927,65408.63,S5 8GS
Department of Health,NHS Sheffield CCG,31/07/2021,C&M-PMS DES Learn Dsblty Hlth Chk,PRC DELEGATED CO-COMMISSIONING,HEALTH CARE SURGERY,37339927,700,S5 8GS
Department of Health,NHS Sheffield CCG,31/07/2021,C&M-PMS Funding Differential Review,PRC DELEGATED CO-COMMISSIONING,HEALTH CARE SURGERY,37339927,506.77,S5 8GS
Department of Health,NHS Sheffield CCG,31/07/2021,C&M-PMS PCN DES Participation,PRC DELEGATED CO-COMMISSIONING,HEALTH CARE SURGERY,37339927,798.5,S5 8GS
Department of Health,NHS Sheffield CCG,31/07/2021,C&M-PMS Prem Notional Rent,PRC DELEGATED CO-COMMISSIONING,HEALTH CARE SURGERY,37339927,5558.33,S5 8GS
Department of Health,NHS Sheffield CCG,31/07/2021,C&M-PMS QOF Aspiration,PRC DELEGATED CO-COMMISSIONING,HEALTH CARE SURGERY,37339927,13286.14,S5 8GS
Department of Health,NHS Sheffield CCG,31/07/2021,C&M-PMS Contract Value,PRC DELEGATED CO-COMMISSIONING,DR MEHROTRA & PARTNER,37339931,25250.62,S9 5DH
Department of Health,NHS Sheffield CCG,31/07/2021,C&M-PMS Funding Differential Review,PRC DELEGATED CO-COMMISSIONING,DR MEHROTRA & PARTNER,37339931,520.47,S9 5DH
Department of Health,NHS Sheffield CCG,31/07/2021,C&M-PMS PCN DES Participation,PRC DELEGATED CO-COMMISSIONING,DR MEHROTRA & PARTNER,37339931,457.08,S9 5DH
Department of Health,NHS Sheffield CCG,31/07/2021,C&M-PMS Prem Notional Rent,PRC DELEGATED CO-COMMISSIONING,DR MEHROTRA & PARTNER,37339931,5157.29,S9 5DH
Department of Health,NHS Sheffield CCG,31/07/2021,C&M-PMS QOF Aspiration,PRC DELEGATED CO-COMMISSIONING,DR MEHROTRA & PARTNER,37339931,2925.04,S9 5DH
Department of Health,NHS Sheffield CCG,31/07/2021,C&M-PMS Contract Value,PRC DELEGATED CO-COMMISSIONING,DEEPCAR MEDICAL CENTRE,37339933,43351.63,S36 2RA
Department of Health,NHS Sheffield CCG,31/07/2021,C&M-PMS Out of Hours Opt Outs,PRC DELEGATED CO-COMMISSIONING,DEEPCAR MEDICAL CENTRE,37339933,13.52,S36 2RA
Department of Health,NHS Sheffield CCG,31/07/2021,C&M-PMS PCN DES Participation,PRC DELEGATED CO-COMMISSIONING,DEEPCAR MEDICAL CENTRE,37339933,784.44,S36 2RA
Department of Health,NHS Sheffield CCG,31/07/2021,C&M-PMS Prem Healthcentre Rent,PRC DELEGATED CO-COMMISSIONING,DEEPCAR MEDICAL CENTRE,37339933,31012.35,S36 2RA
Department of Health,NHS Sheffield CCG,31/07/2021,C&M-PMS QOF Aspiration,PRC DELEGATED CO-COMMISSIONING,DEEPCAR MEDICAL CENTRE,37339933,4646.77,S36 2RA
Department of Health,NHS Sheffield CCG,31/07/2021,C&M-PMS Contract Value,PRC DELEGATED CO-COMMISSIONING,FALKLAND HOUSE,37339935,27780.2,S11 7PL
Department of Health,NHS Sheffield CCG,31/07/2021,C&M-PMS PCN DES Participation,PRC DELEGATED CO-COMMISSIONING,FALKLAND HOUSE,37339935,501.49,S11 7PL
Department of Health,NHS Sheffield CCG,31/07/2021,C&M-PMS PCO Other,PRC DELEGATED CO-COMMISSIONING,FALKLAND HOUSE,37339935,278.9,S11 7PL
Department of Health,NHS Sheffield CCG,31/07/2021,C&M-PMS Prem Notional Rent,PRC DELEGATED CO-COMMISSIONING,FALKLAND HOUSE,37339935,2016.67,S11 7PL
Department of Health,NHS Sheffield CCG,31/07/2021,C&M-PMS Prem Rates,PRC DELEGATED CO-COMMISSIONING,FALKLAND HOUSE,37339935,786,S11 7PL
Department of Health,NHS Sheffield CCG,31/07/2021,C&M-PMS QOF Aspiration,PRC DELEGATED CO-COMMISSIONING,FALKLAND HOUSE,37339935,3362.7,S11 7PL
Department of Health,NHS Sheffield CCG,31/07/2021,C&M-PMS Contract Value,PRC DELEGATED CO-COMMISSIONING,DR MILNER & PARTNERS,37339937,80357.47,S6 4JQ
Department of Health,NHS Sheffield CCG,31/07/2021,C&M-PMS Out of Hours Opt Outs,PRC DELEGATED CO-COMMISSIONING,DR MILNER & PARTNERS,37339937,35.09,S6 4JQ
Department of Health,NHS Sheffield CCG,31/07/2021,C&M-PMS PCN DES Participation,PRC DELEGATED CO-COMMISSIONING,DR MILNER & PARTNERS,37339937,1456.05,S6 4JQ
Department of Health,NHS Sheffield CCG,31/07/2021,C&M-PMS PCO Other,PRC DELEGATED CO-COMMISSIONING,DR MILNER & PARTNERS,37339937,6621,S6 4JQ
Department of Health,NHS Sheffield CCG,31/07/2021,C&M-PMS Prem Actual Rent,PRC DELEGATED CO-COMMISSIONING,DR MILNER & PARTNERS,37339937,11382,S6 4JQ
Department of Health,NHS Sheffield CCG,31/07/2021,C&M-PMS Prem Notional Rent,PRC DELEGATED CO-COMMISSIONING,DR MILNER & PARTNERS,37339937,18364.14,S6 4JQ
Department of Health,NHS Sheffield CCG,31/07/2021,C&M-PMS Prem Rates,PRC DELEGATED CO-COMMISSIONING,DR MILNER & PARTNERS,37339937,1944,S6 4JQ
Department of Health,NHS Sheffield CCG,31/07/2021,C&M-PMS Prem Water Rates,PRC DELEGATED CO-COMMISSIONING,DR MILNER & PARTNERS,37339937,1010.57,S6 4JQ
Department of Health,NHS Sheffield CCG,31/07/2021,C&M-PMS QOF Aspiration,PRC DELEGATED CO-COMMISSIONING,DR MILNER & PARTNERS,37339937,7550.33,S6 4JQ
Department of Health,NHS Sheffield CCG,31/07/2021,C&M-PMS Contract Value,PRC DELEGATED CO-COMMISSIONING,DR MILNER & PARTNERS,37339938,-1174.09,S6 4JQ
Department of Health,NHS Sheffield CCG,31/07/2021,C&M-PMS GP Statutory Levy,PRC DELEGATED CO-COMMISSIONING,DR MILNER & PARTNERS,37339938,-374.68,S6 4JQ
Department of Health,NHS Sheffield CCG,31/07/2021,C&M-PMS Out of Hours Opt Outs,PRC DELEGATED CO-COMMISSIONING,DR MILNER & PARTNERS,37339938,-3788.75,S6 4JQ
Department of Health,NHS Sheffield CCG,31/07/2021,C&M-PMS Prem Notional Rent,PRC DELEGATED CO-COMMISSIONING,DR MILNER & PARTNERS,37339938,-11382,S6 4JQ
Department of Health,NHS Sheffield CCG,31/07/2021,C&M-PMS Contract Value,PRC DELEGATED CO-COMMISSIONING,DOVERCOURT SURGERY,37339939,79283.84,S2 5FX
Department of Health,NHS Sheffield CCG,31/07/2021,C&M-PMS DES Learn Dsblty Hlth Chk,PRC DELEGATED CO-COMMISSIONING,DOVERCOURT SURGERY,37339939,420,S2 5FX
Department of Health,NHS Sheffield CCG,31/07/2021,C&M-PMS Out of Hours Opt Outs,PRC DELEGATED CO-COMMISSIONING,DOVERCOURT SURGERY,37339939,11.75,S2 5FX
Department of Health,NHS Sheffield CCG,31/07/2021,C&M-PMS PCN DES Participation,PRC DELEGATED CO-COMMISSIONING,DOVERCOURT SURGERY,37339939,1436.25,S2 5FX
Department of Health,NHS Sheffield CCG,31/07/2021,C&M-PMS PCO Other,PRC DELEGATED CO-COMMISSIONING,DOVERCOURT SURGERY,37339939,552,S2 5FX
Department of Health,NHS Sheffield CCG,31/07/2021,C&M-PMS Prem Actual Rent,PRC DELEGATED CO-COMMISSIONING,DOVERCOURT SURGERY,37339939,14108.33,S2 5FX
Department of Health,NHS Sheffield CCG,31/07/2021,C&M-PMS Prem Notional Rent,PRC DELEGATED CO-COMMISSIONING,DOVERCOURT SURGERY,37339939,2158.33,S2 5FX
Department of Health,NHS Sheffield CCG,31/07/2021,C&M-PMS Prem Water Rates,PRC DELEGATED CO-COMMISSIONING,DOVERCOURT SURGERY,37339939,114.48,S2 5FX
Department of Health,NHS Sheffield CCG,31/07/2021,C&M-PMS QOF Aspiration,PRC DELEGATED CO-COMMISSIONING,DOVERCOURT SURGERY,37339939,8804.83,S2 5FX
Department of Health,NHS Sheffield CCG,31/07/2021,C&M-PMS Contract Value,PRC DELEGATED CO-COMMISSIONING,FIRTH PARK SURGERY,37339941,80907.98,S5 6HH
Department of Health,NHS Sheffield CCG,31/07/2021,C&M-PMS DES Learn Dsblty Hlth Chk,PRC DELEGATED CO-COMMISSIONING,FIRTH PARK SURGERY,37339941,1260,S5 6HH
Department of Health,NHS Sheffield CCG,31/07/2021,C&M-PMS Out of Hours Opt Outs,PRC DELEGATED CO-COMMISSIONING,FIRTH PARK SURGERY,37339941,15.92,S5 6HH
Department of Health,NHS Sheffield CCG,31/07/2021,C&M-PMS PCN DES Participation,PRC DELEGATED CO-COMMISSIONING,FIRTH PARK SURGERY,37339941,1461.7,S5 6HH
Department of Health,NHS Sheffield CCG,31/07/2021,C&M-PMS PCO Locum Sickness,PRC DELEGATED CO-COMMISSIONING,FIRTH PARK SURGERY,37339941,8593.44,S5 6HH
Department of Health,NHS Sheffield CCG,31/07/2021,C&M-PMS Prem Notional Rent,PRC DELEGATED CO-COMMISSIONING,FIRTH PARK SURGERY,37339941,4666.67,S5 6HH
Department of Health,NHS Sheffield CCG,31/07/2021,C&M-PMS Prem Rates,PRC DELEGATED CO-COMMISSIONING,FIRTH PARK SURGERY,37339941,1508,S5 6HH
Department of Health,NHS Sheffield CCG,31/07/2021,C&M-PMS QOF Aspiration,PRC DELEGATED CO-COMMISSIONING,FIRTH PARK SURGERY,37339941,8220.05,S5 6HH
Department of Health,NHS Sheffield CCG,31/07/2021,C&M-PMS Contract Value,PRC DELEGATED CO-COMMISSIONING,UNIVERSITY HEALTH SERVICE,37339943,-15595.03,S3 7QP
Department of Health,NHS Sheffield CCG,31/07/2021,C&M-PMS GP Statutory Levy,PRC DELEGATED CO-COMMISSIONING,UNIVERSITY HEALTH SERVICE,37339943,-1272.99,S3 7QP
Department of Health,NHS Sheffield CCG,31/07/2021,C&M-PMS Out of Hours Opt Outs,PRC DELEGATED CO-COMMISSIONING,UNIVERSITY HEALTH SERVICE,37339943,-9566.75,S3 7QP
Department of Health,NHS Sheffield CCG,31/07/2021,C&M-PMS Contract Value,PRC DELEGATED CO-COMMISSIONING,UPWELL STREET SURGERY,37339944,37706.44,S4 8AN
Department of Health,NHS Sheffield CCG,31/07/2021,C&M-PMS DES Learn Dsblty Hlth Chk,PRC DELEGATED CO-COMMISSIONING,UPWELL STREET SURGERY,37339944,280,S4 8AN
Department of Health,NHS Sheffield CCG,31/07/2021,C&M-PMS Funding Differential Review,PRC DELEGATED CO-COMMISSIONING,UPWELL STREET SURGERY,37339944,911.19,S4 8AN
Department of Health,NHS Sheffield CCG,31/07/2021,C&M-PMS PCN DES Participation,PRC DELEGATED CO-COMMISSIONING,UPWELL STREET SURGERY,37339944,680.46,S4 8AN
Department of Health,NHS Sheffield CCG,31/07/2021,C&M-PMS PCO Other,PRC DELEGATED CO-COMMISSIONING,UPWELL STREET SURGERY,37339944,315.4,S4 8AN
Department of Health,NHS Sheffield CCG,31/07/2021,C&M-PMS Prem Notional Rent,PRC DELEGATED CO-COMMISSIONING,UPWELL STREET SURGERY,37339944,8137.5,S4 8AN
Department of Health,NHS Sheffield CCG,31/07/2021,C&M-PMS Prem Rates,PRC DELEGATED CO-COMMISSIONING,UPWELL STREET SURGERY,37339944,998,S4 8AN
Department of Health,NHS Sheffield CCG,31/07/2021,C&M-PMS QOF Aspiration,PRC DELEGATED CO-COMMISSIONING,UPWELL STREET SURGERY,37339944,4098.59,S4 8AN
Department of Health,NHS Sheffield CCG,31/07/2021,C&M-PMS Contract Value,PRC DELEGATED CO-COMMISSIONING,VALLEY MEDICAL CENTRE,37339946,-616.89,S36 1BX
Department of Health,NHS Sheffield CCG,31/07/2021,C&M-PMS GP Statutory Levy,PRC DELEGATED CO-COMMISSIONING,VALLEY MEDICAL CENTRE,37339946,-337.16,S36 1BX
Department of Health,NHS Sheffield CCG,31/07/2021,C&M-PMS Out of Hours Opt Outs,PRC DELEGATED CO-COMMISSIONING,VALLEY MEDICAL CENTRE,37339946,-3967.78,S36 1BX
Department of Health,NHS Sheffield CCG,31/07/2021,Cont Care-Physical Disab (65+),CHC ADULT FULLY FUNDED,ABBEYCARE NURSING,37342307,59238.52,S35 9YY
Department of Health,NHS Sheffield CCG,31/07/2021,Cont Care-Physical Disab (65+),CHC ADULT FULLY FUNDED,BC SHEFFIELD LTD,37342314,43784.38,S9 2TJ
Department of Health,NHS Sheffield CCG,31/07/2021,C&M-PMS Contract Value,PRC DELEGATED CO-COMMISSIONING,WOODSEATS MEDICAL CENTRE,37343038,85785.37,S8 0SH
Department of Health,NHS Sheffield CCG,31/07/2021,C&M-PMS PCN DES Participation,PRC DELEGATED CO-COMMISSIONING,WOODSEATS MEDICAL CENTRE,37343038,1531.95,S8 0SH
Department of Health,NHS Sheffield CCG,31/07/2021,C&M-PMS PCO Locum Adop/Pat/Mat,PRC DELEGATED CO-COMMISSIONING,WOODSEATS MEDICAL CENTRE,37343038,6806.86,S8 0SH
Department of Health,NHS Sheffield CCG,31/07/2021,C&M-PMS PCO Other,PRC DELEGATED CO-COMMISSIONING,WOODSEATS MEDICAL CENTRE,37343038,654.9,S8 0SH
Department of Health,NHS Sheffield CCG,31/07/2021,C&M-PMS Prem Notional Rent,PRC DELEGATED CO-COMMISSIONING,WOODSEATS MEDICAL CENTRE,37343038,11666.67,S8 0SH
Department of Health,NHS Sheffield CCG,31/07/2021,C&M-PMS Prem Rates,PRC DELEGATED CO-COMMISSIONING,WOODSEATS MEDICAL CENTRE,37343038,2611,S8 0SH
Department of Health,NHS Sheffield CCG,31/07/2021,C&M-PMS QOF Aspiration,PRC DELEGATED CO-COMMISSIONING,WOODSEATS MEDICAL CENTRE,37343038,10133.24,S8 0SH
Department of Health,NHS Sheffield CCG,31/07/2021,C&M-PMS Contract Value,PRC DELEGATED CO-COMMISSIONING,WOODSEATS MEDICAL CENTRE,37343040,-434.23,S8 0SH
Department of Health,NHS Sheffield CCG,31/07/2021,C&M-PMS GP Statutory Levy,PRC DELEGATED CO-COMMISSIONING,WOODSEATS MEDICAL CENTRE,37343040,-380.49,S8 0SH
Department of Health,NHS Sheffield CCG,31/07/2021,C&M-PMS Out of Hours Opt Outs,PRC DELEGATED CO-COMMISSIONING,WOODSEATS MEDICAL CENTRE,37343040,-4041.44,S8 0SH
Department of Health,NHS Sheffield CCG,31/07/2021,C&M-PMS Contract Value,PRC DELEGATED CO-COMMISSIONING,MANOR & PARK GROUP PRACTICE,37343041,73683.38,S2 5QQ
Department of Health,NHS Sheffield CCG,31/07/2021,C&M-PMS Out of Hours Opt Outs,PRC DELEGATED CO-COMMISSIONING,MANOR & PARK GROUP PRACTICE,37343041,38.76,S2 5QQ
Department of Health,NHS Sheffield CCG,31/07/2021,C&M-PMS PCN DES Participation,PRC DELEGATED CO-COMMISSIONING,MANOR & PARK GROUP PRACTICE,37343041,1333.57,S2 5QQ
Department of Health,NHS Sheffield CCG,31/07/2021,C&M-PMS Prem Notional Rent,PRC DELEGATED CO-COMMISSIONING,MANOR & PARK GROUP PRACTICE,37343041,9112.5,S2 5QQ
Department of Health,NHS Sheffield CCG,31/07/2021,C&M-PMS QOF Aspiration,PRC DELEGATED CO-COMMISSIONING,MANOR & PARK GROUP PRACTICE,37343041,13666.56,S2 5QQ
Department of Health,NHS Sheffield CCG,31/07/2021,C&M-GMS LES Basket of Procedures,LOCAL ENHANCED SERVICES,PRIMARY CARE SHEFFIELD LTD,37344617,53558.33,S12 3GH
Department of Health,NHS Sheffield CCG,31/07/2021,C&M-APMS DES Extended Hours Access,GP FORWARD VIEW,PRIMARY CARE SHEFFIELD LTD,37344628,309441.67,S12 3GH
Department of Health,NHS Sheffield CCG,31/07/2021,Other Research Exp,Nursing and Quality Programme,UNIVERSITY OF SHEFFIELD,37344646,54447.67,S10 2TN
Department of Health,NHS Sheffield CCG,31/07/2021,C&M- IIF ACHIEVEMENT,PRC DELEGATED CO-COMMISSIONING,JAUNTY SPRINGS HEALTH CENTRE,37360572,12280.65,S12 3DZ
Department of Health,NHS Sheffield CCG,31/07/2021,C&M- PCN DES CARE COORDINATOR,PRC DELEGATED CO-COMMISSIONING,JAUNTY SPRINGS HEALTH CENTRE,37360572,2863.2,S12 3DZ
Department of Health,NHS Sheffield CCG,31/07/2021,C&M- PCN DES Nursing Associate,PRC DELEGATED CO-COMMISSIONING,JAUNTY SPRINGS HEALTH CENTRE,37360572,4863.61,S12 3DZ
Department of Health,NHS Sheffield CCG,31/07/2021,C&M-PCN DES OCCUPATIONAL THERAPISTS,PRC DELEGATED CO-COMMISSIONING,JAUNTY SPRINGS HEALTH CENTRE,37360572,5043.26,S12 3DZ
Department of Health,NHS Sheffield CCG,31/07/2021,C&M-PCN DES PHARMACY TECHNICIANS,PRC DELEGATED CO-COMMISSIONING,JAUNTY SPRINGS HEALTH CENTRE,37360572,6019,S12 3DZ
Department of Health,NHS Sheffield CCG,31/07/2021,C&M-PMS Contract Value,PRC DELEGATED CO-COMMISSIONING,JAUNTY SPRINGS HEALTH CENTRE,37360572,32749.5,S12 3DZ
Department of Health,NHS Sheffield CCG,31/07/2021,C&M-PMS DES Extended Hours Access,PRC DELEGATED CO-COMMISSIONING,JAUNTY SPRINGS HEALTH CENTRE,37360572,4196.88,S12 3DZ
Department of Health,NHS Sheffield CCG,31/07/2021,C&M-PMS DES Learn Dsblty Hlth Chk,PRC DELEGATED CO-COMMISSIONING,JAUNTY SPRINGS HEALTH CENTRE,37360572,140,S12 3DZ
Department of Health,NHS Sheffield CCG,31/07/2021,C&M-PMS Out of Hours Opt Outs,PRC DELEGATED CO-COMMISSIONING,JAUNTY SPRINGS HEALTH CENTRE,37360572,5.14,S12 3DZ
Department of Health,NHS Sheffield CCG,31/07/2021,C&M-PMS PCN DES Clin Pharmacist,PRC DELEGATED CO-COMMISSIONING,JAUNTY SPRINGS HEALTH CENTRE,37360572,15718.98,S12 3DZ
Department of Health,NHS Sheffield CCG,31/07/2021,C&M-PMS PCN DES Clinical Director,PRC DELEGATED CO-COMMISSIONING,JAUNTY SPRINGS HEALTH CENTRE,37360572,2145.07,S12 3DZ
Department of Health,NHS Sheffield CCG,31/07/2021,C&M-PMS PCN DES PCN support,PRC DELEGATED CO-COMMISSIONING,JAUNTY SPRINGS HEALTH CENTRE,37360572,4371.75,S12 3DZ
Department of Health,NHS Sheffield CCG,31/07/2021,C&M-PMS PCN DES Participation,PRC DELEGATED CO-COMMISSIONING,JAUNTY SPRINGS HEALTH CENTRE,37360572,593.33,S12 3DZ
Department of Health,NHS Sheffield CCG,31/07/2021,C&M-PMS PCN DES Physiotherapist,PRC DELEGATED CO-COMMISSIONING,JAUNTY SPRINGS HEALTH CENTRE,37360572,9471.5,S12 3DZ
Department of Health,NHS Sheffield CCG,31/07/2021,C&M-PMS PCN DES Soc Prescribing,PRC DELEGATED CO-COMMISSIONING,JAUNTY SPRINGS HEALTH CENTRE,37360572,8447.84,S12 3DZ
Department of Health,NHS Sheffield CCG,31/07/2021,C&M-PMS PCO Locum Sickness,PRC DELEGATED CO-COMMISSIONING,JAUNTY SPRINGS HEALTH CENTRE,37360572,2184.01,S12 3DZ
Department of Health,NHS Sheffield CCG,31/07/2021,C&M-PMS PCO Other,PRC DELEGATED CO-COMMISSIONING,JAUNTY SPRINGS HEALTH CENTRE,37360572,267.9,S12 3DZ
Department of Health,NHS Sheffield CCG,31/07/2021,C&M-PMS Prem Notional Rent,PRC DELEGATED CO-COMMISSIONING,JAUNTY SPRINGS HEALTH CENTRE,37360572,3208.33,S12 3DZ
Department of Health,NHS Sheffield CCG,31/07/2021,C&M-PMS Prem Rates,PRC DELEGATED CO-COMMISSIONING,JAUNTY SPRINGS HEALTH CENTRE,37360572,848,S12 3DZ
Department of Health,NHS Sheffield CCG,31/07/2021,C&M-PMS Prem Water Rates,PRC DELEGATED CO-COMMISSIONING,JAUNTY SPRINGS HEALTH CENTRE,37360572,65.35,S12 3DZ
Department of Health,NHS Sheffield CCG,31/07/2021,C&M-PMS QOF Aspiration,PRC DELEGATED CO-COMMISSIONING,JAUNTY SPRINGS HEALTH CENTRE,37360572,4210.91,S12 3DZ
Department of Health,NHS Sheffield CCG,31/07/2021,C&M- IIF ACHIEVEMENT,PRC DELEGATED CO-COMMISSIONING,FORGE HEALTH GROUP,37360573,15278.05,S3 9DL
Department of Health,NHS Sheffield CCG,31/07/2021,C&M-PMS Contract Value,PRC DELEGATED CO-COMMISSIONING,FORGE HEALTH GROUP,37360573,127306.43,S3 9DL
Department of Health,NHS Sheffield CCG,31/07/2021,C&M-PMS DES Extended Hours Access,PRC DELEGATED CO-COMMISSIONING,FORGE HEALTH GROUP,37360573,6820.92,S3 9DL
Department of Health,NHS Sheffield CCG,31/07/2021,C&M-PMS PCN DES Clinical Director,PRC DELEGATED CO-COMMISSIONING,FORGE HEALTH GROUP,37360573,3486.25,S3 9DL
Department of Health,NHS Sheffield CCG,31/07/2021,C&M-PMS PCN DES PCN support,PRC DELEGATED CO-COMMISSIONING,FORGE HEALTH GROUP,37360573,7105.13,S3 9DL
Department of Health,NHS Sheffield CCG,31/07/2021,C&M-PMS PCN DES Participation,PRC DELEGATED CO-COMMISSIONING,FORGE HEALTH GROUP,37360573,2294.59,S3 9DL
Department of Health,NHS Sheffield CCG,31/07/2021,C&M-PMS Prem Healthcentre Rent,PRC DELEGATED CO-COMMISSIONING,FORGE HEALTH GROUP,37360573,34755.42,S3 9DL
Department of Health,NHS Sheffield CCG,31/07/2021,C&M-PMS Prem Notional Rent,PRC DELEGATED CO-COMMISSIONING,FORGE HEALTH GROUP,37360573,9891.67,S3 9DL
Department of Health,NHS Sheffield CCG,31/07/2021,C&M-PMS Prem Water Rates,PRC DELEGATED CO-COMMISSIONING,FORGE HEALTH GROUP,37360573,310.25,S3 9DL
Department of Health,NHS Sheffield CCG,31/07/2021,C&M-PMS QOF Aspiration,PRC DELEGATED CO-COMMISSIONING,FORGE HEALTH GROUP,37360573,12932.51,S3 9DL
Department of Health,NHS Sheffield CCG,31/07/2021,C&M- IIF ACHIEVEMENT,PRC DELEGATED CO-COMMISSIONING,DYKES HALL MEDICAL CENTRE,37360574,14457.26,S6 4GQ
Department of Health,NHS Sheffield CCG,31/07/2021,C&M- PCN DES Nursing Associate,PRC DELEGATED CO-COMMISSIONING,DYKES HALL MEDICAL CENTRE,37360574,4699.53,S6 4GQ
Department of Health,NHS Sheffield CCG,31/07/2021,C&M-PCN DES PHARMACY TECHNICIANS,PRC DELEGATED CO-COMMISSIONING,DYKES HALL MEDICAL CENTRE,37360574,2949.08,S6 4GQ
Department of Health,NHS Sheffield CCG,31/07/2021,C&M-PMS Contract Value,PRC DELEGATED CO-COMMISSIONING,DYKES HALL MEDICAL CENTRE,37360574,74345.31,S6 4GQ
Department of Health,NHS Sheffield CCG,31/07/2021,C&M-PMS DES Extended Hours Access,PRC DELEGATED CO-COMMISSIONING,DYKES HALL MEDICAL CENTRE,37360574,4281.12,S6 4GQ
Department of Health,NHS Sheffield CCG,31/07/2021,C&M-PMS Funding Differential Review,PRC DELEGATED CO-COMMISSIONING,DYKES HALL MEDICAL CENTRE,37360574,1473.36,S6 4GQ
Department of Health,NHS Sheffield CCG,31/07/2021,C&M-PMS Out of Hours Opt Outs,PRC DELEGATED CO-COMMISSIONING,DYKES HALL MEDICAL CENTRE,37360574,21.04,S6 4GQ
Department of Health,NHS Sheffield CCG,31/07/2021,C&M-PMS PCN DES Clin Pharmacist,PRC DELEGATED CO-COMMISSIONING,DYKES HALL MEDICAL CENTRE,37360574,16192.1,S6 4GQ
Department of Health,NHS Sheffield CCG,31/07/2021,C&M-PMS PCN DES Clinical Director,PRC DELEGATED CO-COMMISSIONING,DYKES HALL MEDICAL CENTRE,37360574,2188.13,S6 4GQ
Department of Health,NHS Sheffield CCG,31/07/2021,C&M-PMS PCN DES PCN support,PRC DELEGATED CO-COMMISSIONING,DYKES HALL MEDICAL CENTRE,37360574,4459.5,S6 4GQ
Department of Health,NHS Sheffield CCG,31/07/2021,C&M-PMS PCN DES Participation,PRC DELEGATED CO-COMMISSIONING,DYKES HALL MEDICAL CENTRE,37360574,1345.01,S6 4GQ
Department of Health,NHS Sheffield CCG,31/07/2021,C&M-PMS PCN DES Physiotherapist,PRC DELEGATED CO-COMMISSIONING,DYKES HALL MEDICAL CENTRE,37360574,6494.84,S6 4GQ
Department of Health,NHS Sheffield CCG,31/07/2021,C&M-PMS PCN DES Soc Prescribing,PRC DELEGATED CO-COMMISSIONING,DYKES HALL MEDICAL CENTRE,37360574,2949,S6 4GQ
Department of Health,NHS Sheffield CCG,31/07/2021,C&M-PMS Prem Notional Rent,PRC DELEGATED CO-COMMISSIONING,DYKES HALL MEDICAL CENTRE,37360574,5406.25,S6 4GQ
Department of Health,NHS Sheffield CCG,31/07/2021,C&M-PMS Prem Rates,PRC DELEGATED CO-COMMISSIONING,DYKES HALL MEDICAL CENTRE,37360574,910,S6 4GQ
Department of Health,NHS Sheffield CCG,31/07/2021,C&M-PMS Prem Water Rates,PRC DELEGATED CO-COMMISSIONING,DYKES HALL MEDICAL CENTRE,37360574,259,S6 4GQ
Department of Health,NHS Sheffield CCG,31/07/2021,C&M-PMS QOF Aspiration,PRC DELEGATED CO-COMMISSIONING,DYKES HALL MEDICAL CENTRE,37360574,9390.15,S6 4GQ
Department of Health,NHS Sheffield CCG,31/07/2021,C&M-PMS Contract Value,PRC DELEGATED CO-COMMISSIONING,EAST BANK MEDICAL CENTRE,37360575,52271.63,S2 2AG
Department of Health,NHS Sheffield CCG,31/07/2021,C&M-PMS DES Learn Dsblty Hlth Chk,PRC DELEGATED CO-COMMISSIONING,EAST BANK MEDICAL CENTRE,37360575,140,S2 2AG
Department of Health,NHS Sheffield CCG,31/07/2021,C&M-PMS PCN DES Participation,PRC DELEGATED CO-COMMISSIONING,EAST BANK MEDICAL CENTRE,37360575,945.64,S2 2AG
Department of Health,NHS Sheffield CCG,31/07/2021,C&M-PMS PCO Locum Sickness,PRC DELEGATED CO-COMMISSIONING,EAST BANK MEDICAL CENTRE,37360575,11290.83,S2 2AG
Department of Health,NHS Sheffield CCG,31/07/2021,C&M-PMS Prem Notional Rent,PRC DELEGATED CO-COMMISSIONING,EAST BANK MEDICAL CENTRE,37360575,10583.33,S2 2AG
Department of Health,NHS Sheffield CCG,31/07/2021,C&M-PMS Prem Rates,PRC DELEGATED CO-COMMISSIONING,EAST BANK MEDICAL CENTRE,37360575,2065,S2 2AG
Department of Health,NHS Sheffield CCG,31/07/2021,C&M-PMS QOF Aspiration,PRC DELEGATED CO-COMMISSIONING,EAST BANK MEDICAL CENTRE,37360575,5744.23,S2 2AG
Department of Health,NHS Sheffield CCG,31/07/2021,C&M- IIF ACHIEVEMENT,PRC DELEGATED CO-COMMISSIONING,UNIVERSITY HEALTH SERVICE,37360576,11.15,S3 7QP
Department of Health,NHS Sheffield CCG,31/07/2021,C&M-PCN DES Trainee Nursing Associate,PRC DELEGATED CO-COMMISSIONING,UNIVERSITY HEALTH SERVICE,37360576,1836.94,S3 7QP
Department of Health,NHS Sheffield CCG,31/07/2021,C&M-PMS Contract Value,PRC DELEGATED CO-COMMISSIONING,UNIVERSITY HEALTH SERVICE,37360576,202981.57,S3 7QP
Department of Health,NHS Sheffield CCG,31/07/2021,C&M-PMS DES Extended Hours Access,PRC DELEGATED CO-COMMISSIONING,UNIVERSITY HEALTH SERVICE,37360576,4876.32,S3 7QP
Department of Health,NHS Sheffield CCG,31/07/2021,C&M-PMS Out of Hours Opt Outs,PRC DELEGATED CO-COMMISSIONING,UNIVERSITY HEALTH SERVICE,37360576,670.65,S3 7QP
Department of Health,NHS Sheffield CCG,31/07/2021,C&M-PMS PCN DES Clin Pharmacist,PRC DELEGATED CO-COMMISSIONING,UNIVERSITY HEALTH SERVICE,37360576,9092.11,S3 7QP
Department of Health,NHS Sheffield CCG,31/07/2021,C&M-PMS PCN DES Clinical Director,PRC DELEGATED CO-COMMISSIONING,UNIVERSITY HEALTH SERVICE,37360576,2492.34,S3 7QP
Department of Health,NHS Sheffield CCG,31/07/2021,C&M-PMS PCN DES PCN support,PRC DELEGATED CO-COMMISSIONING,UNIVERSITY HEALTH SERVICE,37360576,5079.5,S3 7QP
Department of Health,NHS Sheffield CCG,31/07/2021,C&M-PMS PCN DES Participation,PRC DELEGATED CO-COMMISSIONING,UNIVERSITY HEALTH SERVICE,37360576,3676.64,S3 7QP
Department of Health,NHS Sheffield CCG,31/07/2021,C&M-PMS PCN DES Physiotherapist,PRC DELEGATED CO-COMMISSIONING,UNIVERSITY HEALTH SERVICE,37360576,3053.47,S3 7QP
Department of Health,NHS Sheffield CCG,31/07/2021,C&M-PMS PCN DES Soc Prescribing,PRC DELEGATED CO-COMMISSIONING,UNIVERSITY HEALTH SERVICE,37360576,2814.04,S3 7QP
Department of Health,NHS Sheffield CCG,31/07/2021,C&M-PMS PCO Locum Sickness,PRC DELEGATED CO-COMMISSIONING,UNIVERSITY HEALTH SERVICE,37360576,7245.82,S3 7QP
Department of Health,NHS Sheffield CCG,31/07/2021,C&M-PMS Prem Notional Rent,PRC DELEGATED CO-COMMISSIONING,UNIVERSITY HEALTH SERVICE,37360576,15833.33,S3 7QP
Department of Health,NHS Sheffield CCG,31/07/2021,C&M-PMS QOF Aspiration,PRC DELEGATED CO-COMMISSIONING,UNIVERSITY HEALTH SERVICE,37360576,8048.38,S3 7QP
Department of Health,NHS Sheffield CCG,31/07/2021,C&M- IIF ACHIEVEMENT,PRC DELEGATED CO-COMMISSIONING,VALLEY MEDICAL CENTRE,37360577,8440.53,S36 1BX
Department of Health,NHS Sheffield CCG,31/07/2021,C&M-PCN DES PHARMACY TECHNICIANS,PRC DELEGATED CO-COMMISSIONING,VALLEY MEDICAL CENTRE,37360577,3009.5,S36 1BX
Department of Health,NHS Sheffield CCG,31/07/2021,C&M-PMS Contract Value,PRC DELEGATED CO-COMMISSIONING,VALLEY MEDICAL CENTRE,37360577,84271.12,S36 1BX
Department of Health,NHS Sheffield CCG,31/07/2021,C&M-PMS DES Extended Hours Access,PRC DELEGATED CO-COMMISSIONING,VALLEY MEDICAL CENTRE,37360577,2477.4,S36 1BX
Department of Health,NHS Sheffield CCG,31/07/2021,C&M-PMS Out of Hours Opt Outs,PRC DELEGATED CO-COMMISSIONING,VALLEY MEDICAL CENTRE,37360577,8.51,S36 1BX
Department of Health,NHS Sheffield CCG,31/07/2021,C&M-PMS PCN DES Clin Pharmacist,PRC DELEGATED CO-COMMISSIONING,VALLEY MEDICAL CENTRE,37360577,4050.51,S36 1BX
Department of Health,NHS Sheffield CCG,31/07/2021,C&M-PMS PCN DES Clinical Director,PRC DELEGATED CO-COMMISSIONING,VALLEY MEDICAL CENTRE,37360577,1266.23,S36 1BX
Department of Health,NHS Sheffield CCG,31/07/2021,C&M-PMS PCN DES PCN support,PRC DELEGATED CO-COMMISSIONING,VALLEY MEDICAL CENTRE,37360577,2580.63,S36 1BX
Department of Health,NHS Sheffield CCG,31/07/2021,C&M-PMS PCN DES Participation,PRC DELEGATED CO-COMMISSIONING,VALLEY MEDICAL CENTRE,37360577,1524.87,S36 1BX
Department of Health,NHS Sheffield CCG,31/07/2021,C&M-PMS PCN DES Physiotherapist,PRC DELEGATED CO-COMMISSIONING,VALLEY MEDICAL CENTRE,37360577,2073.61,S36 1BX
Department of Health,NHS Sheffield CCG,31/07/2021,C&M-PMS PCN DES Soc Prescribing,PRC DELEGATED CO-COMMISSIONING,VALLEY MEDICAL CENTRE,37360577,1708.78,S36 1BX
Department of Health,NHS Sheffield CCG,31/07/2021,C&M-PMS PCO Locum Adop/Pat/Mat,PRC DELEGATED CO-COMMISSIONING,VALLEY MEDICAL CENTRE,37360577,10634.92,S36 1BX
Department of Health,NHS Sheffield CCG,31/07/2021,C&M-PMS Prem Rates,PRC DELEGATED CO-COMMISSIONING,VALLEY MEDICAL CENTRE,37360577,657,S36 1BX
Department of Health,NHS Sheffield CCG,31/07/2021,C&M-PMS QOF Aspiration,PRC DELEGATED CO-COMMISSIONING,VALLEY MEDICAL CENTRE,37360577,9844.79,S36 1BX
Department of Health,NHS Sheffield CCG,31/07/2021,Cont Care- Adult 100% Fully Funded,CHC ADULT FULLY FUNDED,SOUTH YORKSHIRE HOUSING ASSOCIATION LTD,37369491,25500,S1 4HF
Department of Health,NHS Sheffield CCG,31/07/2021,Cont Care- Adult 100% Fully Funded,CHC ADULT FULLY FUNDED,SOUTH YORKSHIRE HOUSING ASSOCIATION LTD,37369499,46763.59,S1 4HF
Department of Health,NHS Sheffield CCG,31/07/2021,Clinical&Medical-Independent Sector,MENTAL HEALTH CONTRACTS,SUSASH GB LTD T/A EAGLE HOUSE,37369503,30091.75,S11 8NP
Department of Health,NHS Sheffield CCG,31/07/2021,Clinical&Medical-Independent Sector,MENTAL HEALTH CONTRACTS,SOUTH YORKSHIRE HOUSING ASSOCIATION LTD,37369507,34434.83,S1 4HF
Department of Health,NHS Sheffield CCG,31/07/2021,C&M-GMS LES Equitable Funding,LOCAL ENHANCED SERVICES,MEADOWHEAD GROUP PRACTICE,37369823,25240,S8 7RL
Department of Health,NHS Sheffield CCG,31/07/2021,C&M-GMS LES Equitable Funding,LOCAL ENHANCED SERVICES,PORTER BROOK MEDICAL CENTRE,37369852,25482,S11 8HN
Department of Health,NHS Sheffield CCG,31/07/2021,C&M-GMS LES Equitable Funding,LOCAL ENHANCED SERVICES,UNIVERSITY HEALTH SERVICE,37369910,29008,S3 7QP
Department of Health,NHS Sheffield CCG,31/07/2021,Cont Care-Physical Disab (<65),CHC ADULT FULLY FUNDED,COUNTRY COURT CARE LTD,37369967,33485.62,S5 6UU
Department of Health,NHS Sheffield CCG,31/07/2021,Cont Care-Physical Disab (<65),CHC ADULT FULLY FUNDED,ALPINE HEALTH CARE,37369970,27474.18,S36 1AD
Department of Health,NHS Sheffield CCG,31/07/2021,Cont Care-Physical Disab (<65),CHC ADULT FULLY FUNDED,SOUTH YORKSHIRE HOUSING ASSOCIATION LTD,37369979,82581.75,S35 1RQ
Department of Health,NHS Sheffield CCG,31/07/2021,Cont Care-Physical Disab (<65),CHC ADULT FULLY FUNDED,BUPA CARE HOMES,37369982,26150.39,LS18 4UP
Department of Health,NHS Sheffield CCG,31/07/2021,Cont Care-Physical Disab (<65),CHC ADULT FULLY FUNDED,FAIRWINDS HEALTH CARE LTD,37369988,43326.35,S61 1AJ
Department of Health,NHS Sheffield CCG,31/07/2021,Cont Care-Physical Disab (<65),CHC ADULT FULLY FUNDED,FOUR SEASONS HEALTH CARE LTD,37369994,33236.28,DL1 1RW
Department of Health,NHS Sheffield CCG,31/07/2021,Cont Care-Physical Disab (<65),CHC ADULT FULLY FUNDED,LONGLEY HEALTH CARE LTD,37370000,143503,S5 7JZ
Department of Health,NHS Sheffield CCG,31/07/2021,Cont Care-Physical Disab (<65),CHC ADULT FULLY FUNDED,SCARSDALE GRANGE NURSING HOME,37370021,50353.69,S8 9EQ
Department of Health,NHS Sheffield CCG,31/07/2021,Cont Care-Physical Disab (<65),CHC ADULT FULLY FUNDED,SEVEN HILLS NURSING HOME,37370025,73422.63,S11 9AA
Department of Health,NHS Sheffield CCG,31/07/2021,Cont Care-Physical Disab (<65),CHC ADULT FULLY FUNDED,WILLOWBECK HEALTH CARE LTD,37370041,213119.72,S4 8AR
Department of Health,NHS Sheffield CCG,31/07/2021,Cont Care-Physical Disab (<65),CHC ADULT FULLY FUNDED,HORIZON CARE HOMES LTD,37370047,32286.84,S25 3QA
Department of Health,NHS Sheffield CCG,31/07/2021,Cont Care-Physical Disab (<65),CHC ADULT FULLY FUNDED,ROSEBERRY CARE CENTRES,37370054,38143.65,S5 6AB
Department of Health,NHS Sheffield CCG,31/07/2021,Cont Care-Physical Disab (<65),CHC ADULT FULLY FUNDED,BONDCARE,37370084,28912.76,NW4 4EF
Department of Health,NHS Sheffield CCG,31/07/2021,Cont Care-Physical Disab (<65),CHC ADULT FULLY FUNDED,ROSEBERRY CARE CENTRES,37370087,29442.48,S4 7AJ
Department of Health,NHS Sheffield CCG,31/07/2021,Cont Care-Physical Disab (<65),CHC ADULT FULLY FUNDED,HORIZON CARE HOMES LTD,37370091,41359.66,S25 3QA
Department of Health,NHS Sheffield CCG,31/07/2021,Cont Care-Physical Disab (<65),CHC ADULT FULLY FUNDED,SUSASH GB LTD T/A EAGLE HOUSE,37370095,27219.71,S11 8NP
Department of Health,NHS Sheffield CCG,31/07/2021,Cont Care-Physical Disab (<65),CHC ADULT FULLY FUNDED,HORIZON CARE HOMES LTD,37370099,100096.19,S25 3QA
Department of Health,NHS Sheffield CCG,31/07/2021,C&M-APMS LES Translation Fees,LOCAL ENHANCED SERVICES,CLOVER GROUP PRACTICE,37373054,70750,S9 4QH
Department of Health,NHS Sheffield CCG,31/07/2021,C&M-GMS C&M-APMS PCN DES Physician Assoc,PRC DELEGATED CO-COMMISSIONING,PRIMARY CARE SHEFFIELD LTD,37376330,4355.7,S9 4EU
Department of Health,NHS Sheffield CCG,31/07/2021,C&M-GMS PCN DES Clin Pharmacist,PRC DELEGATED CO-COMMISSIONING,PRIMARY CARE SHEFFIELD LTD,37376330,9778.37,S9 4EU
Department of Health,NHS Sheffield CCG,31/07/2021,C&M-GMS PCN DES Home/RR paramedic,PRC DELEGATED CO-COMMISSIONING,PRIMARY CARE SHEFFIELD LTD,37376330,4558.85,S9 4EU
Department of Health,NHS Sheffield CCG,31/07/2021,C&M-GMS PCN DES Physiotherapist,PRC DELEGATED CO-COMMISSIONING,PRIMARY CARE SHEFFIELD LTD,37376330,4735.75,S9 4EU
Department of Health,NHS Sheffield CCG,31/07/2021,C&M-GMS PCN DES Soc Prescribing,PRC DELEGATED CO-COMMISSIONING,PRIMARY CARE SHEFFIELD LTD,37376330,4272.8,S9 4EU
Department of Health,NHS Sheffield CCG,31/07/2021,C&M-PCN DES OCCUPATIONAL THERAPISTS,PRC DELEGATED CO-COMMISSIONING,PRIMARY CARE SHEFFIELD LTD,37376330,4267.1,S9 4EU
Department of Health,NHS Sheffield CCG,31/07/2021,C&M-PCN DES PHARMACY TECHNICIANS,PRC DELEGATED CO-COMMISSIONING,PRIMARY CARE SHEFFIELD LTD,37376330,3009.5,S9 4EU
Department of Health,NHS Sheffield CCG,31/07/2021,Charges from CSU,BUSINESS INFORMATICS,NHS NORTH OF ENGLAND CSU,37376721,26554.67,WF3 1WE
Department of Health,NHS Sheffield CCG,31/07/2021,C&M-GMS Global Sum,PRC DELEGATED CO-COMMISSIONING,BEAUCHIEF MEDICAL PRACTICE,37379575,51728.15,S8 0BJ
Department of Health,NHS Sheffield CCG,31/07/2021,C&M-GMS Prem Notional Rent,PRC DELEGATED CO-COMMISSIONING,BEAUCHIEF MEDICAL PRACTICE,37379575,3770.84,S8 0BJ
Department of Health,NHS Sheffield CCG,31/07/2021,C&M-GMS Prem Rates,PRC DELEGATED CO-COMMISSIONING,BEAUCHIEF MEDICAL PRACTICE,37379575,1409,S8 0BJ
Department of Health,NHS Sheffield CCG,31/07/2021,C&M-GMS QOF Aspiration,PRC DELEGATED CO-COMMISSIONING,BEAUCHIEF MEDICAL PRACTICE,37379575,5984.27,S8 0BJ
Department of Health,NHS Sheffield CCG,31/07/2021,C&M-PMS QOF Achievement,PRC DELEGATED CO-COMMISSIONING,BEAUCHIEF MEDICAL PRACTICE,37379575,13175.76,S8 0BJ
Department of Health,NHS Sheffield CCG,31/07/2021,Hcare Srv Rec Fdtn Trust-Contract Baseline,ACUTE COMMISSIONING,BARNSLEY HOSPITAL NHS FOUNDATION TRUST,37379676,131671.79,S75 2EP
Department of Health,NHS Sheffield CCG,31/07/2021,Hcare Srv Rec Fdtn Trust-Contract Baseline,ACUTE COMMISSIONING,CHESTERFIELD ROYAL HOSPITAL NHS FOUNDATION TRUST,37379677,371022.89,S44 5BL
Department of Health,NHS Sheffield CCG,31/07/2021,Hcare Srv Rec Fdtn Trust-Contract Baseline,ACUTE COMMISSIONING,DONCASTER AND BASSETLAW HOSPITALS NHS FOUNDATION TRUST,37379678,80128.09,WF3 1WE
Department of Health,NHS Sheffield CCG,31/07/2021,Hcare Srv Rec NHS Trust-Contract Baseline,ACUTE COMMISSIONING,LEEDS TEACHING HOSPITALS NHS TRUST,37379679,48099.81,LS9 7TF
Department of Health,NHS Sheffield CCG,31/07/2021,Hcare Srv Rec NHS Trust-Contract Baseline,AMBULANCE SERVICES,YORKSHIRE AMBULANCE SERVICE NHS TRUST,37379680,2437523.85,WF2 0XQ
Department of Health,NHS Sheffield CCG,31/07/2021,Hcare Srv Rec Fdtn Trust-Contract Baseline,ACUTE CHILDRENS SERVICES,SHEFFIELD CHILDRENS NHS FOUNDATION TRUST,37379681,3731046.58,S10 2TH
Department of Health,NHS Sheffield CCG,31/07/2021,Hcare Srv Rec Fdtn Trust-Contract Baseline,ACUTE CHILDRENS SERVICES,SHEFFIELD CHILDRENS NHS FOUNDATION TRUST,37379682,2279500,S10 2TH
Department of Health,NHS Sheffield CCG,31/07/2021,Hcare Srv Rec Fdtn Trust-Contract Baseline,MENTAL HEALTH CONTRACTS,SHEFFIELD HEALTH & SOCIAL CARE NHS FOUNDATION TRUST,37379683,908500,S10 3TH
Department of Health,NHS Sheffield CCG,31/07/2021,Hcare Srv Rec Fdtn Trust-Contract Baseline,MENTAL HEALTH CONTRACTS,SHEFFIELD HEALTH & SOCIAL CARE NHS FOUNDATION TRUST,37379684,8171496.52,S10 3TH
Department of Health,NHS Sheffield CCG,31/07/2021,Hcare Srv Rec Fdtn Trust-Contract Baseline,ACUTE COMMISSIONING,SHEFFIELD TEACHING HOSPITALS NHS FOUNDATION TRUST,37379685,37776143.78,S5 7AU
Department of Health,NHS Sheffield CCG,31/07/2021,Hcare Srv Rec Fdtn Trust-Contract Baseline,ACUTE COMMISSIONING,SHEFFIELD TEACHING HOSPITALS NHS FOUNDATION TRUST,37379686,7149333.33,S5 7AU
Department of Health,NHS Sheffield CCG,31/07/2021,Hcare Srv Rec Fdtn Trust-Contract Baseline,ACUTE COMMISSIONING,ROTHERHAM NHS FOUNDATION TRUST,37379687,622083.23,S60 2UD
Department of Health,NHS Sheffield CCG,31/07/2021,Clinical&Medical-Serv Recd-F Trsts,BEREAVEMENT SERVICE,HUMBER TEACHING NHS FOUNDATION TRUST,37379688,50920.34,WF3 1WE
Department of Health,NHS Sheffield CCG,31/07/2021,C&M-GMS PCN DES Clin Pharmacist,PRC DELEGATED CO-COMMISSIONING,PRIMARY CARE SHEFFIELD LTD,37396319,16226.26,S9 4EU
Department of Health,NHS Sheffield CCG,31/07/2021,C&M-GMS PCN DES Physiotherapist,PRC DELEGATED CO-COMMISSIONING,PRIMARY CARE SHEFFIELD LTD,37396319,2615.31,S9 4EU
Department of Health,NHS Sheffield CCG,31/07/2021,C&M-GMS PCN DES Soc Prescribing,PRC DELEGATED CO-COMMISSIONING,PRIMARY CARE SHEFFIELD LTD,37396319,5399.82,S9 4EU
Department of Health,NHS Sheffield CCG,31/07/2021,C&M-PCN DES Adult Mental Health Practitioner,PRC DELEGATED CO-COMMISSIONING,PRIMARY CARE SHEFFIELD LTD,37396319,2264.24,S9 4EU
Department of Health,NHS Sheffield CCG,31/07/2021,C&M-PCN DES Trainee Nursing Associate,PRC DELEGATED CO-COMMISSIONING,PRIMARY CARE SHEFFIELD LTD,37396319,2042.32,S9 4EU
Department of Health,NHS Sheffield CCG,31/07/2021,Voids and Subsidies,RECHARGES NHS PROPERTY SERVICES LTD,DARNALL WELL BEING,37396328,33050.19,S9 4QH
Department of Health,NHS Sheffield CCG,31/07/2021,Computer Software/License,PRIMARY CARE IT,ACCURX LTD,37408809,26320.58,N1 5AA
Department of Health,NHS Sheffield CCG,31/07/2021,Computer Software/License,PRIMARY CARE IT,ACCURX LTD,37408818,26320.58,N1 5AA
Department of Health,NHS Sheffield CCG,31/07/2021,Computer Software/License,PRIMARY CARE IT,ACCURX LTD,37408820,-26320.58,N1 5AA
Department of Health,NHS Sheffield CCG,31/07/2021,C&M-GMS IT Comm Servs -GP Practices,PRIMARY CARE IT,NHS BARNSLEY CCG,37408830,28350,WF3 1WE
Department of Health,NHS Sheffield CCG,31/07/2021,Participation Fees,BEREAVEMENT SERVICE,ROTHERHAM DONCASTER AND SOUTH HUMBER NHS FOUNDATION TRUST,37457770,50000,DN4 8QN
Department of Health,NHS Sheffield CCG,31/07/2021,Clinical&Medical-Serv Recd-F Trsts,BEREAVEMENT SERVICE,ROTHERHAM DONCASTER AND SOUTH HUMBER NHS FOUNDATION TRUST,37457796,32926.75,DN4 8QN
Department of Health,NHS Sheffield CCG,31/07/2021,Clinical&Medical-Independent Sector,ACUTE COMMISSIONING,SPAMEDICA LTD,37457816,121092.27,BL1 1HU
Department of Health,NHS Sheffield CCG,31/07/2021,Clinical&Medical-Serv Recd-F Trsts,BEREAVEMENT SERVICE,ROTHERHAM DONCASTER AND SOUTH HUMBER NHS FOUNDATION TRUST,37457871,-32926.75,DN4 8QN
Department of Health,NHS Sheffield CCG,31/07/2021,Rent,ESTATES AND FACILITIES,NHS PROPERTY SERVICES LTD,37457901,107487.83,EC2V 7NG
Department of Health,NHS Sheffield CCG,31/07/2021,Rent,RECHARGES NHS PROPERTY SERVICES LTD,NHS PROPERTY SERVICES LTD,37457901,35829.28,EC2V 7NG
Department of Health,NHS Sheffield CCG,31/07/2021,Service Charge,ESTATES AND FACILITIES,NHS PROPERTY SERVICES LTD,37457901,34688.43,EC2V 7NG
Department of Health,NHS Sheffield CCG,31/07/2021,Service Charge,RECHARGES NHS PROPERTY SERVICES LTD,NHS PROPERTY SERVICES LTD,37457901,11562.8,EC2V 7NG
Department of Health,NHS Sheffield CCG,31/07/2021,Service Charge,ESTATES AND FACILITIES,NHS PROPERTY SERVICES LTD,37457904,59949.29,EC2V 7NG
Department of Health,NHS Sheffield CCG,31/07/2021,Service Charge,RECHARGES NHS PROPERTY SERVICES LTD,NHS PROPERTY SERVICES LTD,37457904,19983.1,EC2V 7NG
Department of Health,NHS Sheffield CCG,31/07/2021,Clinical&Medical-Voluntary Sector,CHILD AND ADOLESCENT MENTAL HEALTH,SHEFFIELD FUTURES,37457944,25600.01,S1 4GE
Department of Health,NHS Sheffield CCG,31/07/2021,Clinical&Medical-Othe Public Sector,COMMUNITY SERVICES,SHEFFIELD CITY COUNCIL,37458049,150416.7,S1 1UJ
Department of Health,NHS Sheffield CCG,31/07/2021,Clinical&Medical-Othe Public Sector,MENTAL HEALTH SERVICES - COLLABORATIVE COMMISSIONING,SHEFFIELD CITY COUNCIL,37458049,83669.09,S1 1UJ
Department of Health,NHS Sheffield CCG,31/07/2021,Clinical&Medical-Othe Public Sector,REABLEMENT,SHEFFIELD CITY COUNCIL,37458049,21808.67,S1 1UJ
Department of Health,NHS Sheffield CCG,31/07/2021,Clinical&Medical-Othe Public Sector,SAFEGUARDING,SHEFFIELD CITY COUNCIL,37458049,16596.33,S1 1UJ
Department of Health,NHS Sheffield CCG,31/07/2021,Cont Care-Physical Disab (65+),CHC ADULT FULLY FUNDED,SHEFFIELD CITY COUNCIL,37458049,62941.09,S1 1UJ
Department of Health,NHS Sheffield CCG,31/07/2021,Soc Care-Joint H&C Teams/Working,INTERMEDIATE CARE,SHEFFIELD CITY COUNCIL,37458049,151447.58,S1 1UJ
Department of Health,NHS Sheffield CCG,31/07/2021,Soc Care-Other Soc Care,COMMISSIONING - NON ACUTE,SHEFFIELD CITY COUNCIL,37458049,1635250,S1 1UJ
Department of Health,NHS Sheffield CCG,31/07/2021,Soc Care-Support Prim Care,COMMUNITY SERVICES,SHEFFIELD CITY COUNCIL,37458049,64166.67,S1 1UJ
Department of Health,NHS Sheffield CCG,31/07/2021,Clinical&Medical-Independent Sector,ACUTE COMMISSIONING,CLAREMONT HOSPITAL,37462131,78839,S10 5UB
Department of Health,NHS Sheffield CCG,31/07/2021,Clinical&Medical-Independent Sector,ACUTE COMMISSIONING,SPAMEDICA LTD,37462134,33060.17,BL1 1HU
Department of Health,NHS Sheffield CCG,31/07/2021,Cont Care-Physical Disab (<65),CHC AD FULL FUND PERS HLTH BUD,JOSHS CARE COMPANY LTD,37507295,32727.6,S80 4LX
Department of Health,NHS Sheffield CCG,31/07/2021,Participation Fees,BEREAVEMENT SERVICE,PRIMARY CARE SHEFFIELD LTD,37521155,120000,S9 4EU
Department of Health,NHS Sheffield CCG,31/07/2021,External Consultancy Fees,CLINICAL LEADS,CAJA LTD,37521170,66000,ST5 5NB
Department of Health,NHS Sheffield CCG,31/07/2021,Cont Care-Physical Disab (<65),CHC ADULT FULLY FUNDED,JUVENTA 4 CARE LTD,37521248,52738.56,S2 1AS
Department of Health,NHS Sheffield CCG,31/07/2021,Clinical&Medical-Independent Sector,ACUTE COMMISSIONING,ONEHEALTH GROUP,37521289,55732.95,S11 8UX
Department of Health,NHS Sheffield CCG,31/07/2021,Clinical&Medical-Othe Public Sector,CHILD AND ADOLESCENT MENTAL HEALTH,SHEFFIELD CITY COUNCIL,37521298,327477,S1 2HH
Department of Health,NHS Sheffield CCG,31/07/2021,Cont Care-Funded Nursing Care Allow,FUNDED NURSING CARE,ROSEBERRY CARE CENTRES,37526238,31042.26,S5 6AB
Department of Health,NHS Sheffield CCG,31/07/2021,Cont Care-Funded Nursing Care Allow,FUNDED NURSING CARE,BONDCARE,37526245,32562,NW4 4EF
Department of Health,NHS Sheffield CCG,31/07/2021,C&M-GMS DES Learn Dsblty Hlth Chk,PRC DELEGATED CO-COMMISSIONING,WALKLEY HOUSE MEDICAL CENTRE,37537703,140,S6 3TN
Department of Health,NHS Sheffield CCG,31/07/2021,C&M-GMS Global Sum,PRC DELEGATED CO-COMMISSIONING,WALKLEY HOUSE MEDICAL CENTRE,37537703,94408.3,S6 3TN
Department of Health,NHS Sheffield CCG,31/07/2021,C&M-GMS PCN DES Participation,PRC DELEGATED CO-COMMISSIONING,WALKLEY HOUSE MEDICAL CENTRE,37537703,1785.69,S6 3TN
Department of Health,NHS Sheffield CCG,31/07/2021,C&M-GMS Prem Notional Rent,PRC DELEGATED CO-COMMISSIONING,WALKLEY HOUSE MEDICAL CENTRE,37537703,8418.25,S6 3TN
Department of Health,NHS Sheffield CCG,31/07/2021,C&M-GMS Prem Rates,PRC DELEGATED CO-COMMISSIONING,WALKLEY HOUSE MEDICAL CENTRE,37537703,1297,S6 3TN
Department of Health,NHS Sheffield CCG,31/07/2021,C&M-GMS Prem Water Rates,PRC DELEGATED CO-COMMISSIONING,WALKLEY HOUSE MEDICAL CENTRE,37537703,547.5,S6 3TN
Department of Health,NHS Sheffield CCG,31/07/2021,C&M-GMS QOF Aspiration,PRC DELEGATED CO-COMMISSIONING,WALKLEY HOUSE MEDICAL CENTRE,37537703,9792.91,S6 3TN
Department of Health,NHS Sheffield CCG,31/07/2021,C&M-GMS GP Statutory Levy,PRC DELEGATED CO-COMMISSIONING,WALKLEY HOUSE MEDICAL CENTRE,37537704,-868.46,S6 3TN
Department of Health,NHS Sheffield CCG,31/07/2021,C&M-GMS QOF Achievement,PRC DELEGATED CO-COMMISSIONING,WALKLEY HOUSE MEDICAL CENTRE,37537704,-1257.83,S6 3TN
Department of Health,NHS Sheffield CCG,31/07/2021,C&M-GMS Global Sum,PRC DELEGATED CO-COMMISSIONING,NORFOLK PARK HEALTH CENTRE,37537706,44345.95,S2 3TA
Department of Health,NHS Sheffield CCG,31/07/2021,C&M-GMS PCN DES Participation,PRC DELEGATED CO-COMMISSIONING,NORFOLK PARK HEALTH CENTRE,37537706,820.08,S2 3TA
Department of Health,NHS Sheffield CCG,31/07/2021,C&M-GMS PCO Other,PRC DELEGATED CO-COMMISSIONING,NORFOLK PARK HEALTH CENTRE,37537706,3391,S2 3TA
Department of Health,NHS Sheffield CCG,31/07/2021,C&M-GMS Prem Healthcentre Rent,PRC DELEGATED CO-COMMISSIONING,NORFOLK PARK HEALTH CENTRE,37537706,25391.78,S2 3TA
Department of Health,NHS Sheffield CCG,31/07/2021,C&M-GMS QOF Aspiration,PRC DELEGATED CO-COMMISSIONING,NORFOLK PARK HEALTH CENTRE,37537706,4434.09,S2 3TA
Department of Health,NHS Sheffield CCG,31/07/2021,C&M-GMS Global Sum,PRC DELEGATED CO-COMMISSIONING,BUCHANAN ROAD SURGERY,37537713,37807.91,S5 8AL
Department of Health,NHS Sheffield CCG,31/07/2021,C&M-GMS PCN DES Participation,PRC DELEGATED CO-COMMISSIONING,BUCHANAN ROAD SURGERY,37537713,727.12,S5 8AL
Department of Health,NHS Sheffield CCG,31/07/2021,C&M-GMS Prem Notional Rent,PRC DELEGATED CO-COMMISSIONING,BUCHANAN ROAD SURGERY,37537713,2595.83,S5 8AL
Department of Health,NHS Sheffield CCG,31/07/2021,C&M-GMS QOF Aspiration,PRC DELEGATED CO-COMMISSIONING,BUCHANAN ROAD SURGERY,37537713,4716.42,S5 8AL
Department of Health,NHS Sheffield CCG,31/07/2021,C&M-GMS Global Sum,PRC DELEGATED CO-COMMISSIONING,NORWOOD MEDICAL CENTRE SHEFFIELD,37537716,69541.93,S5 7HD
Department of Health,NHS Sheffield CCG,31/07/2021,C&M-GMS PCN DES Participation,PRC DELEGATED CO-COMMISSIONING,NORWOOD MEDICAL CENTRE SHEFFIELD,37537716,1332.45,S5 7HD
Department of Health,NHS Sheffield CCG,31/07/2021,C&M-GMS PCO Other,PRC DELEGATED CO-COMMISSIONING,NORWOOD MEDICAL CENTRE SHEFFIELD,37537716,515.9,S5 7HD
Department of Health,NHS Sheffield CCG,31/07/2021,C&M-GMS Prem Notional Rent,PRC DELEGATED CO-COMMISSIONING,NORWOOD MEDICAL CENTRE SHEFFIELD,37537716,5187.5,S5 7HD
Department of Health,NHS Sheffield CCG,31/07/2021,C&M-GMS QOF Aspiration,PRC DELEGATED CO-COMMISSIONING,NORWOOD MEDICAL CENTRE SHEFFIELD,37537716,8469.31,S5 7HD
Department of Health,NHS Sheffield CCG,31/07/2021,C&M-GMS DES Learn Dsblty Hlth Chk,PRC DELEGATED CO-COMMISSIONING,CARTERKNOWLE & DORE MEDICAL PRACTICE,37537720,840,S7 2DW
Department of Health,NHS Sheffield CCG,31/07/2021,C&M-GMS Global Sum,PRC DELEGATED CO-COMMISSIONING,CARTERKNOWLE & DORE MEDICAL PRACTICE,37537720,94548.6,S7 2DW
Department of Health,NHS Sheffield CCG,31/07/2021,C&M-GMS PCN DES Participation,PRC DELEGATED CO-COMMISSIONING,CARTERKNOWLE & DORE MEDICAL PRACTICE,37537720,1765.5,S7 2DW
Department of Health,NHS Sheffield CCG,31/07/2021,C&M-GMS Prem Notional Rent,PRC DELEGATED CO-COMMISSIONING,CARTERKNOWLE & DORE MEDICAL PRACTICE,37537720,7855,S7 2DW
Department of Health,NHS Sheffield CCG,31/07/2021,C&M-GMS QOF Aspiration,PRC DELEGATED CO-COMMISSIONING,CARTERKNOWLE & DORE MEDICAL PRACTICE,37537720,11516.91,S7 2DW
Department of Health,NHS Sheffield CCG,31/07/2021,C&M-GMS Global Sum,PRC DELEGATED CO-COMMISSIONING,TRAMWAYS MEDICAL CENTRE,37537723,66016.44,S6 4JQ
Department of Health,NHS Sheffield CCG,31/07/2021,C&M-GMS PCN DES Participation,PRC DELEGATED CO-COMMISSIONING,TRAMWAYS MEDICAL CENTRE,37537723,1255.37,S6 4JQ
Department of Health,NHS Sheffield CCG,31/07/2021,C&M-GMS PCO Other,PRC DELEGATED CO-COMMISSIONING,TRAMWAYS MEDICAL CENTRE,37537723,527.2,S6 4JQ
Department of Health,NHS Sheffield CCG,31/07/2021,C&M-GMS Prem Cost Rent,PRC DELEGATED CO-COMMISSIONING,TRAMWAYS MEDICAL CENTRE,37537723,4012.75,S6 4JQ
Department of Health,NHS Sheffield CCG,31/07/2021,C&M-GMS Prem Rates,PRC DELEGATED CO-COMMISSIONING,TRAMWAYS MEDICAL CENTRE,37537723,823,S6 4JQ
Department of Health,NHS Sheffield CCG,31/07/2021,C&M-GMS Prem Water Rates,PRC DELEGATED CO-COMMISSIONING,TRAMWAYS MEDICAL CENTRE,37537723,258,S6 4JQ
Department of Health,NHS Sheffield CCG,31/07/2021,C&M-GMS QOF Aspiration,PRC DELEGATED CO-COMMISSIONING,TRAMWAYS MEDICAL CENTRE,37537723,6868.53,S6 4JQ
Department of Health,NHS Sheffield CCG,31/07/2021,C&M-GMS DES Learn Dsblty Hlth Chk,PRC DELEGATED CO-COMMISSIONING,WHITE HOUSE SURGERY SHEFFIELD,37537727,280,S2 1SL
Department of Health,NHS Sheffield CCG,31/07/2021,C&M-GMS Global Sum,PRC DELEGATED CO-COMMISSIONING,WHITE HOUSE SURGERY SHEFFIELD,37537727,58404.92,S2 1SL
Department of Health,NHS Sheffield CCG,31/07/2021,C&M-GMS PCN DES Participation,PRC DELEGATED CO-COMMISSIONING,WHITE HOUSE SURGERY SHEFFIELD,37537727,1090.83,S2 1SL
Department of Health,NHS Sheffield CCG,31/07/2021,C&M-GMS PCO Locum Sickness,PRC DELEGATED CO-COMMISSIONING,WHITE HOUSE SURGERY SHEFFIELD,37537727,1570,S2 1SL
Department of Health,NHS Sheffield CCG,31/07/2021,C&M-GMS Prem Notional Rent,PRC DELEGATED CO-COMMISSIONING,WHITE HOUSE SURGERY SHEFFIELD,37537727,9412.5,S2 1SL
Department of Health,NHS Sheffield CCG,31/07/2021,C&M-GMS Prem Rates,PRC DELEGATED CO-COMMISSIONING,WHITE HOUSE SURGERY SHEFFIELD,37537727,1632,S2 1SL
Department of Health,NHS Sheffield CCG,31/07/2021,C&M-GMS QOF Aspiration,PRC DELEGATED CO-COMMISSIONING,WHITE HOUSE SURGERY SHEFFIELD,37537727,6765.85,S2 1SL
Department of Health,NHS Sheffield CCG,31/07/2021,C&M-GMS Global Sum,PRC DELEGATED CO-COMMISSIONING,FAR LANE MEDICAL CENTRE,37537730,59327.53,S6 4FA
Department of Health,NHS Sheffield CCG,31/07/2021,C&M-GMS PCN DES Participation,PRC DELEGATED CO-COMMISSIONING,FAR LANE MEDICAL CENTRE,37537730,1139.22,S6 4FA
Department of Health,NHS Sheffield CCG,31/07/2021,C&M-GMS PCO Other,PRC DELEGATED CO-COMMISSIONING,FAR LANE MEDICAL CENTRE,37537730,458.3,S6 4FA
Department of Health,NHS Sheffield CCG,31/07/2021,C&M-GMS Prem Notional Rent,PRC DELEGATED CO-COMMISSIONING,FAR LANE MEDICAL CENTRE,37537730,3504.17,S6 4FA
Department of Health,NHS Sheffield CCG,31/07/2021,C&M-GMS Prem Water Rates,PRC DELEGATED CO-COMMISSIONING,FAR LANE MEDICAL CENTRE,37537730,108.18,S6 4FA
Department of Health,NHS Sheffield CCG,31/07/2021,C&M-GMS QOF Aspiration,PRC DELEGATED CO-COMMISSIONING,FAR LANE MEDICAL CENTRE,37537730,6827.86,S6 4FA
Department of Health,NHS Sheffield CCG,31/07/2021,C&M-GMS Global Sum,PRC DELEGATED CO-COMMISSIONING,STONECROFT MEDICAL CENTRE,37537733,35871.88,S12 2LJ
Department of Health,NHS Sheffield CCG,31/07/2021,C&M-GMS PCN DES Participation,PRC DELEGATED CO-COMMISSIONING,STONECROFT MEDICAL CENTRE,37537733,680.92,S12 2LJ
Department of Health,NHS Sheffield CCG,31/07/2021,C&M-GMS PCO Other,PRC DELEGATED CO-COMMISSIONING,STONECROFT MEDICAL CENTRE,37537733,290.3,S12 2LJ
Department of Health,NHS Sheffield CCG,31/07/2021,C&M-GMS Prem Notional Rent,PRC DELEGATED CO-COMMISSIONING,STONECROFT MEDICAL CENTRE,37537733,2808.33,S12 2LJ
Department of Health,NHS Sheffield CCG,31/07/2021,C&M-GMS Prem Rates,PRC DELEGATED CO-COMMISSIONING,STONECROFT MEDICAL CENTRE,37537733,1235,S12 2LJ
Department of Health,NHS Sheffield CCG,31/07/2021,C&M-GMS QOF Aspiration,PRC DELEGATED CO-COMMISSIONING,STONECROFT MEDICAL CENTRE,37537733,4286.72,S12 2LJ
Department of Health,NHS Sheffield CCG,31/07/2021,C&M-GMS DES Learn Dsblty Hlth Chk,PRC DELEGATED CO-COMMISSIONING,BROOMHILL SURGERY,37537740,140,S10 5BU
Department of Health,NHS Sheffield CCG,31/07/2021,C&M-GMS Global Sum,PRC DELEGATED CO-COMMISSIONING,BROOMHILL SURGERY,37537740,68839.49,S10 5BU
Department of Health,NHS Sheffield CCG,31/07/2021,C&M-GMS PCN DES Participation,PRC DELEGATED CO-COMMISSIONING,BROOMHILL SURGERY,37537740,1322.15,S10 5BU
Department of Health,NHS Sheffield CCG,31/07/2021,C&M-GMS Prem Cost Rent,PRC DELEGATED CO-COMMISSIONING,BROOMHILL SURGERY,37537740,3309.67,S10 5BU
Department of Health,NHS Sheffield CCG,31/07/2021,C&M-GMS Prem Notional Rent,PRC DELEGATED CO-COMMISSIONING,BROOMHILL SURGERY,37537740,2612.5,S10 5BU
Department of Health,NHS Sheffield CCG,31/07/2021,C&M-GMS QOF Aspiration,PRC DELEGATED CO-COMMISSIONING,BROOMHILL SURGERY,37537740,7198.65,S10 5BU
Department of Health,NHS Sheffield CCG,31/07/2021,C&M-GMS DES Learn Dsblty Hlth Chk,PRC DELEGATED CO-COMMISSIONING,DUKE MEDICAL CENTRE,37537743,140,S2 2TD
Department of Health,NHS Sheffield CCG,31/07/2021,C&M-GMS Global Sum,PRC DELEGATED CO-COMMISSIONING,DUKE MEDICAL CENTRE,37537743,66989.88,S2 2TD
Department of Health,NHS Sheffield CCG,31/07/2021,C&M-GMS PCN DES Participation,PRC DELEGATED CO-COMMISSIONING,DUKE MEDICAL CENTRE,37537743,1180.97,S2 2TD
Department of Health,NHS Sheffield CCG,31/07/2021,C&M-GMS PCO Locum Sickness,PRC DELEGATED CO-COMMISSIONING,DUKE MEDICAL CENTRE,37537743,6956.52,S2 2TD
Department of Health,NHS Sheffield CCG,31/07/2021,C&M-GMS PCO Other,PRC DELEGATED CO-COMMISSIONING,DUKE MEDICAL CENTRE,37537743,477.6,S2 2TD
Department of Health,NHS Sheffield CCG,31/07/2021,C&M-GMS Prem Notional Rent,PRC DELEGATED CO-COMMISSIONING,DUKE MEDICAL CENTRE,37537743,5721.67,S2 2TD
Department of Health,NHS Sheffield CCG,31/07/2021,C&M-GMS Prem Water Rates,PRC DELEGATED CO-COMMISSIONING,DUKE MEDICAL CENTRE,37537743,251,S2 2TD
Department of Health,NHS Sheffield CCG,31/07/2021,C&M-GMS QOF Aspiration,PRC DELEGATED CO-COMMISSIONING,DUKE MEDICAL CENTRE,37537743,6200.05,S2 2TD
Department of Health,NHS Sheffield CCG,31/07/2021,C&M-GMS Global Sum,PRC DELEGATED CO-COMMISSIONING,UPPERTHORPE MEDICAL CENTRE,37537745,94232.77,S6 3FT
Department of Health,NHS Sheffield CCG,31/07/2021,C&M-GMS PCN DES Participation,PRC DELEGATED CO-COMMISSIONING,UPPERTHORPE MEDICAL CENTRE,37537745,1770.85,S6 3FT
Department of Health,NHS Sheffield CCG,31/07/2021,C&M-GMS PCO Locum Adop/Pat/Mat,PRC DELEGATED CO-COMMISSIONING,UPPERTHORPE MEDICAL CENTRE,37537745,7789.53,S6 3FT
Department of Health,NHS Sheffield CCG,31/07/2021,C&M-GMS Prem Actual Rent,PRC DELEGATED CO-COMMISSIONING,UPPERTHORPE MEDICAL CENTRE,37537745,29894.5,S6 3FT
Department of Health,NHS Sheffield CCG,31/07/2021,C&M-GMS Prem Notional Rent,PRC DELEGATED CO-COMMISSIONING,UPPERTHORPE MEDICAL CENTRE,37537745,2128.33,S6 3FT
Department of Health,NHS Sheffield CCG,31/07/2021,C&M-GMS Prem Rates,PRC DELEGATED CO-COMMISSIONING,UPPERTHORPE MEDICAL CENTRE,37537745,2121,S6 3FT
Department of Health,NHS Sheffield CCG,31/07/2021,C&M-GMS Prem Water Rates,PRC DELEGATED CO-COMMISSIONING,UPPERTHORPE MEDICAL CENTRE,37537745,137.66,S6 3FT
Department of Health,NHS Sheffield CCG,31/07/2021,C&M-GMS QOF Aspiration,PRC DELEGATED CO-COMMISSIONING,UPPERTHORPE MEDICAL CENTRE,37537745,10749.32,S6 3FT
Department of Health,NHS Sheffield CCG,31/07/2021,C&M-GMS Global Sum,PRC DELEGATED CO-COMMISSIONING,CHARNOCK HEALTH PRIMARY CARE CENTRE,37537748,46327.4,S12 3GH
Department of Health,NHS Sheffield CCG,31/07/2021,C&M-GMS PCN DES Participation,PRC DELEGATED CO-COMMISSIONING,CHARNOCK HEALTH PRIMARY CARE CENTRE,37537748,884.41,S12 3GH
Department of Health,NHS Sheffield CCG,31/07/2021,C&M-GMS PCO Other,PRC DELEGATED CO-COMMISSIONING,CHARNOCK HEALTH PRIMARY CARE CENTRE,37537748,1476.8,S12 3GH
Department of Health,NHS Sheffield CCG,31/07/2021,C&M-GMS Prem Actual Rent,PRC DELEGATED CO-COMMISSIONING,CHARNOCK HEALTH PRIMARY CARE CENTRE,37537748,20400,S12 3GH
Department of Health,NHS Sheffield CCG,31/07/2021,C&M-GMS Prem Notional Rent,PRC DELEGATED CO-COMMISSIONING,CHARNOCK HEALTH PRIMARY CARE CENTRE,37537748,340,S12 3GH
Department of Health,NHS Sheffield CCG,31/07/2021,C&M-GMS Prem Rates,PRC DELEGATED CO-COMMISSIONING,CHARNOCK HEALTH PRIMARY CARE CENTRE,37537748,1160,S12 3GH
Department of Health,NHS Sheffield CCG,31/07/2021,C&M-GMS Prem Water Rates,PRC DELEGATED CO-COMMISSIONING,CHARNOCK HEALTH PRIMARY CARE CENTRE,37537748,173.75,S12 3GH
Department of Health,NHS Sheffield CCG,31/07/2021,C&M-GMS QOF Aspiration,PRC DELEGATED CO-COMMISSIONING,CHARNOCK HEALTH PRIMARY CARE CENTRE,37537748,5385.73,S12 3GH
Department of Health,NHS Sheffield CCG,31/07/2021,C&M-GMS DES Learn Dsblty Hlth Chk,PRC DELEGATED CO-COMMISSIONING,HANDSWORTH MEDICAL PRACTICE SHEFFIELD,37537753,1120,S13 9BZ
Department of Health,NHS Sheffield CCG,31/07/2021,C&M-GMS Global Sum,PRC DELEGATED CO-COMMISSIONING,HANDSWORTH MEDICAL PRACTICE SHEFFIELD,37537753,84617.52,S13 9BZ
Department of Health,NHS Sheffield CCG,31/07/2021,C&M-GMS PCN DES Participation,PRC DELEGATED CO-COMMISSIONING,HANDSWORTH MEDICAL PRACTICE SHEFFIELD,37537753,1619.69,S13 9BZ
Department of Health,NHS Sheffield CCG,31/07/2021,C&M-GMS Prem Notional Rent,PRC DELEGATED CO-COMMISSIONING,HANDSWORTH MEDICAL PRACTICE SHEFFIELD,37537753,3321.66,S13 9BZ
Department of Health,NHS Sheffield CCG,31/07/2021,C&M-GMS Prem Water Rates,PRC DELEGATED CO-COMMISSIONING,HANDSWORTH MEDICAL PRACTICE SHEFFIELD,37537753,181.28,S13 9BZ
Department of Health,NHS Sheffield CCG,31/07/2021,C&M-GMS QOF Aspiration,PRC DELEGATED CO-COMMISSIONING,HANDSWORTH MEDICAL PRACTICE SHEFFIELD,37537753,8749.2,S13 9BZ
Department of Health,NHS Sheffield CCG,31/07/2021,C&M-GMS DES Learn Dsblty Hlth Chk,PRC DELEGATED CO-COMMISSIONING,BASLOW ROAD & SHOREHAM STREET SURGERIES,37537755,140,S17 4DR
Department of Health,NHS Sheffield CCG,31/07/2021,C&M-GMS Global Sum,PRC DELEGATED CO-COMMISSIONING,BASLOW ROAD & SHOREHAM STREET SURGERIES,37537755,102251.32,S17 4DR
Department of Health,NHS Sheffield CCG,31/07/2021,C&M-GMS PCN DES Participation,PRC DELEGATED CO-COMMISSIONING,BASLOW ROAD & SHOREHAM STREET SURGERIES,37537755,1957.06,S17 4DR
Department of Health,NHS Sheffield CCG,31/07/2021,C&M-GMS Prem Notional Rent,PRC DELEGATED CO-COMMISSIONING,BASLOW ROAD & SHOREHAM STREET SURGERIES,37537755,8222.71,S17 4DR
Department of Health,NHS Sheffield CCG,31/07/2021,C&M-GMS Prem Water Rates,PRC DELEGATED CO-COMMISSIONING,BASLOW ROAD & SHOREHAM STREET SURGERIES,37537755,327.21,S17 4DR
Department of Health,NHS Sheffield CCG,31/07/2021,C&M-GMS QOF Aspiration,PRC DELEGATED CO-COMMISSIONING,BASLOW ROAD & SHOREHAM STREET SURGERIES,37537755,10432.69,S17 4DR
Department of Health,NHS Sheffield CCG,31/07/2021,C&M-GMS GP Statutory Levy,PRC DELEGATED CO-COMMISSIONING,BASLOW ROAD & SHOREHAM STREET SURGERIES,37537756,-867.41,S17 4DR
Department of Health,NHS Sheffield CCG,31/07/2021,C&M-GMS Prem Notional Rent,PRC DELEGATED CO-COMMISSIONING,BASLOW ROAD & SHOREHAM STREET SURGERIES,37537756,-2507.29,S17 4DR
Department of Health,NHS Sheffield CCG,31/07/2021,C&M-GMS QOF Achievement,PRC DELEGATED CO-COMMISSIONING,BASLOW ROAD & SHOREHAM STREET SURGERIES,37537756,-19265.33,S17 4DR
Department of Health,NHS Sheffield CCG,31/07/2021,C&M-GMS Global Sum,PRC DELEGATED CO-COMMISSIONING,MATHEWS PRACTICE,37537758,58494.86,S2 4UJ
Department of Health,NHS Sheffield CCG,31/07/2021,C&M-GMS PCN DES Participation,PRC DELEGATED CO-COMMISSIONING,MATHEWS PRACTICE,37537758,1147.05,S2 4UJ
Department of Health,NHS Sheffield CCG,31/07/2021,C&M-GMS Prem Rates,PRC DELEGATED CO-COMMISSIONING,MATHEWS PRACTICE,37537758,1466,S2 4UJ
Department of Health,NHS Sheffield CCG,31/07/2021,C&M-GMS QOF Aspiration,PRC DELEGATED CO-COMMISSIONING,MATHEWS PRACTICE,37537758,6845.8,S2 4UJ
Department of Health,NHS Sheffield CCG,31/07/2021,C&M-GMS Global Sum,PRC DELEGATED CO-COMMISSIONING,OUGHTIBRIDGE SURGERY,37537762,46965.38,S35 0FW
Department of Health,NHS Sheffield CCG,31/07/2021,C&M-GMS PCN DES Participation,PRC DELEGATED CO-COMMISSIONING,OUGHTIBRIDGE SURGERY,37537762,886,S35 0FW
Department of Health,NHS Sheffield CCG,31/07/2021,C&M-GMS Prem Notional Rent,PRC DELEGATED CO-COMMISSIONING,OUGHTIBRIDGE SURGERY,37537762,4064.58,S35 0FW
Department of Health,NHS Sheffield CCG,31/07/2021,C&M-GMS Prem Rates,PRC DELEGATED CO-COMMISSIONING,OUGHTIBRIDGE SURGERY,37537762,511,S35 0FW
Department of Health,NHS Sheffield CCG,31/07/2021,C&M-GMS Prem Water Rates,PRC DELEGATED CO-COMMISSIONING,OUGHTIBRIDGE SURGERY,37537762,146.48,S35 0FW
Department of Health,NHS Sheffield CCG,31/07/2021,C&M-GMS QOF Aspiration,PRC DELEGATED CO-COMMISSIONING,OUGHTIBRIDGE SURGERY,37537762,4819.4,S35 0FW
Department of Health,NHS Sheffield CCG,31/07/2021,C&M-GMS Global Sum,PRC DELEGATED CO-COMMISSIONING,ELM LANE SURGERY,37537772,45624.99,S5 7TW
Department of Health,NHS Sheffield CCG,31/07/2021,C&M-GMS PCN DES Participation,PRC DELEGATED CO-COMMISSIONING,ELM LANE SURGERY,37537772,865.86,S5 7TW
Department of Health,NHS Sheffield CCG,31/07/2021,C&M-GMS PCO Other,PRC DELEGATED CO-COMMISSIONING,ELM LANE SURGERY,37537772,1435.2,S5 7TW
Department of Health,NHS Sheffield CCG,31/07/2021,C&M-GMS Prem Notional Rent,PRC DELEGATED CO-COMMISSIONING,ELM LANE SURGERY,37537772,5343,S5 7TW
Department of Health,NHS Sheffield CCG,31/07/2021,C&M-GMS Prem Rates,PRC DELEGATED CO-COMMISSIONING,ELM LANE SURGERY,37537772,2872.04,S5 7TW
Department of Health,NHS Sheffield CCG,31/07/2021,C&M-GMS QOF Aspiration,PRC DELEGATED CO-COMMISSIONING,ELM LANE SURGERY,37537772,5528.96,S5 7TW
Department of Health,NHS Sheffield CCG,31/07/2021,C&M-GMS GP Statutory Levy,PRC DELEGATED CO-COMMISSIONING,ELM LANE SURGERY,37537773,-381.51,S5 7TW
Department of Health,NHS Sheffield CCG,31/07/2021,C&M-GMS Global Sum,PRC DELEGATED CO-COMMISSIONING,HOLLIES MEDICAL CENTRE,37537777,68177.25,S11 9AL
Department of Health,NHS Sheffield CCG,31/07/2021,C&M-GMS PCN DES Participation,PRC DELEGATED CO-COMMISSIONING,HOLLIES MEDICAL CENTRE,37537777,1270.72,S11 9AL
Department of Health,NHS Sheffield CCG,31/07/2021,C&M-GMS Prem Notional Rent,PRC DELEGATED CO-COMMISSIONING,HOLLIES MEDICAL CENTRE,37537777,3358.33,S11 9AL
Department of Health,NHS Sheffield CCG,31/07/2021,C&M-GMS QOF Aspiration,PRC DELEGATED CO-COMMISSIONING,HOLLIES MEDICAL CENTRE,37537777,8186.06,S11 9AL
Department of Health,NHS Sheffield CCG,31/07/2021,C&M-GMS Global Sum,PRC DELEGATED CO-COMMISSIONING,GRENOSIDE SURGERY,37537781,65822.84,S35 8NX
Department of Health,NHS Sheffield CCG,31/07/2021,C&M-GMS PCN DES Participation,PRC DELEGATED CO-COMMISSIONING,GRENOSIDE SURGERY,37537781,1250.62,S35 8NX
Department of Health,NHS Sheffield CCG,31/07/2021,C&M-GMS PCO Other,PRC DELEGATED CO-COMMISSIONING,GRENOSIDE SURGERY,37537781,492.7,S35 8NX
Department of Health,NHS Sheffield CCG,31/07/2021,C&M-GMS Prem Notional Rent,PRC DELEGATED CO-COMMISSIONING,GRENOSIDE SURGERY,37537781,10203.74,S35 8NX
Department of Health,NHS Sheffield CCG,31/07/2021,C&M-GMS Prem Rates,PRC DELEGATED CO-COMMISSIONING,GRENOSIDE SURGERY,37537781,1622,S35 8NX
Department of Health,NHS Sheffield CCG,31/07/2021,C&M-GMS QOF Aspiration,PRC DELEGATED CO-COMMISSIONING,GRENOSIDE SURGERY,37537781,6590.45,S35 8NX
Department of Health,NHS Sheffield CCG,31/07/2021,C&M-GMS Global Sum,PRC DELEGATED CO-COMMISSIONING,SHARROW LANE MEDICAL CENTRE,37537786,26213.86,S11 8AN
Department of Health,NHS Sheffield CCG,31/07/2021,C&M-GMS PCN DES Participation,PRC DELEGATED CO-COMMISSIONING,SHARROW LANE MEDICAL CENTRE,37537786,500.68,S11 8AN
Department of Health,NHS Sheffield CCG,31/07/2021,C&M-GMS Prem Notional Rent,PRC DELEGATED CO-COMMISSIONING,SHARROW LANE MEDICAL CENTRE,37537786,2741.67,S11 8AN
Department of Health,NHS Sheffield CCG,31/07/2021,C&M-GMS QOF Aspiration,PRC DELEGATED CO-COMMISSIONING,SHARROW LANE MEDICAL CENTRE,37537786,2983.54,S11 8AN
Department of Health,NHS Sheffield CCG,31/07/2021,C&M-GMS Global Sum,PRC DELEGATED CO-COMMISSIONING,SHIREGREEN MEDICAL CENTRE,37537790,60366.21,S5 0RG
Department of Health,NHS Sheffield CCG,31/07/2021,C&M-GMS PCN DES Participation,PRC DELEGATED CO-COMMISSIONING,SHIREGREEN MEDICAL CENTRE,37537790,1161.13,S5 0RG
Department of Health,NHS Sheffield CCG,31/07/2021,C&M-GMS Prem Cost Rent,PRC DELEGATED CO-COMMISSIONING,SHIREGREEN MEDICAL CENTRE,37537790,1792.33,S5 0RG
Department of Health,NHS Sheffield CCG,31/07/2021,C&M-GMS Prem Notional Rent,PRC DELEGATED CO-COMMISSIONING,SHIREGREEN MEDICAL CENTRE,37537790,5375,S5 0RG
Department of Health,NHS Sheffield CCG,31/07/2021,C&M-GMS Prem Rates,PRC DELEGATED CO-COMMISSIONING,SHIREGREEN MEDICAL CENTRE,37537790,1868,S5 0RG
Department of Health,NHS Sheffield CCG,31/07/2021,C&M-GMS QOF Aspiration,PRC DELEGATED CO-COMMISSIONING,SHIREGREEN MEDICAL CENTRE,37537790,7267.46,S5 0RG
Department of Health,NHS Sheffield CCG,31/07/2021,C&M-GMS DES Learn Dsblty Hlth Chk,PRC DELEGATED CO-COMMISSIONING,HEELEY GREEN SURGERY,37537793,140,S2 3AJ
Department of Health,NHS Sheffield CCG,31/07/2021,C&M-GMS Global Sum,PRC DELEGATED CO-COMMISSIONING,HEELEY GREEN SURGERY,37537793,44337.9,S2 3AJ
Department of Health,NHS Sheffield CCG,31/07/2021,C&M-GMS PCN DES Participation,PRC DELEGATED CO-COMMISSIONING,HEELEY GREEN SURGERY,37537793,848.8,S2 3AJ
Department of Health,NHS Sheffield CCG,31/07/2021,C&M-GMS Prem Notional Rent,PRC DELEGATED CO-COMMISSIONING,HEELEY GREEN SURGERY,37537793,3254.17,S2 3AJ
Department of Health,NHS Sheffield CCG,31/07/2021,C&M-GMS QOF Aspiration,PRC DELEGATED CO-COMMISSIONING,HEELEY GREEN SURGERY,37537793,4674.69,S2 3AJ
Department of Health,NHS Sheffield CCG,31/07/2021,C&M-GMS Global Sum,PRC DELEGATED CO-COMMISSIONING,DEVONSHIRE GREEN MEDICAL CENTRE,37537797,50965.01,S3 7SF
Department of Health,NHS Sheffield CCG,31/07/2021,C&M-GMS PCN DES Participation,PRC DELEGATED CO-COMMISSIONING,DEVONSHIRE GREEN MEDICAL CENTRE,37537797,936.47,S3 7SF
Department of Health,NHS Sheffield CCG,31/07/2021,C&M-GMS Prem Notional Rent,PRC DELEGATED CO-COMMISSIONING,DEVONSHIRE GREEN MEDICAL CENTRE,37537797,5987.5,S3 7SF
Department of Health,NHS Sheffield CCG,31/07/2021,C&M-GMS Prem Rates,PRC DELEGATED CO-COMMISSIONING,DEVONSHIRE GREEN MEDICAL CENTRE,37537797,778,S3 7SF
Department of Health,NHS Sheffield CCG,31/07/2021,C&M-GMS QOF Aspiration,PRC DELEGATED CO-COMMISSIONING,DEVONSHIRE GREEN MEDICAL CENTRE,37537797,5473.95,S3 7SF
Department of Health,NHS Sheffield CCG,31/07/2021,C&M-GMS DES Learn Dsblty Hlth Chk,PRC DELEGATED CO-COMMISSIONING,CROOKES PRACTICE,37537803,140,S10 1GN
Department of Health,NHS Sheffield CCG,31/07/2021,C&M-GMS Global Sum,PRC DELEGATED CO-COMMISSIONING,CROOKES PRACTICE,37537803,57030.44,S10 1GN
Department of Health,NHS Sheffield CCG,31/07/2021,C&M-GMS PCN DES Participation,PRC DELEGATED CO-COMMISSIONING,CROOKES PRACTICE,37537803,1077.54,S10 1GN
Department of Health,NHS Sheffield CCG,31/07/2021,C&M-GMS PCO Other,PRC DELEGATED CO-COMMISSIONING,CROOKES PRACTICE,37537803,532.1,S10 1GN
Department of Health,NHS Sheffield CCG,31/07/2021,C&M-GMS Prem Notional Rent,PRC DELEGATED CO-COMMISSIONING,CROOKES PRACTICE,37537803,4006.59,S10 1GN
Department of Health,NHS Sheffield CCG,31/07/2021,C&M-GMS Prem Rates,PRC DELEGATED CO-COMMISSIONING,CROOKES PRACTICE,37537803,1534,S10 1GN
Department of Health,NHS Sheffield CCG,31/07/2021,C&M-GMS QOF Aspiration,PRC DELEGATED CO-COMMISSIONING,CROOKES PRACTICE,37537803,5404.47,S10 1GN
Department of Health,NHS Sheffield CCG,31/07/2021,C&M-GMS Global Sum,PRC DELEGATED CO-COMMISSIONING,MILL ROAD SURGERY SHEFFIELD,37537816,44654.76,S35 9XQ
Department of Health,NHS Sheffield CCG,31/07/2021,C&M-GMS PCN DES Participation,PRC DELEGATED CO-COMMISSIONING,MILL ROAD SURGERY SHEFFIELD,37537816,838.81,S35 9XQ
Department of Health,NHS Sheffield CCG,31/07/2021,C&M-GMS PCO Other,PRC DELEGATED CO-COMMISSIONING,MILL ROAD SURGERY SHEFFIELD,37537816,350.7,S35 9XQ
Department of Health,NHS Sheffield CCG,31/07/2021,C&M-GMS Prem Notional Rent,PRC DELEGATED CO-COMMISSIONING,MILL ROAD SURGERY SHEFFIELD,37537816,4593.33,S35 9XQ
Department of Health,NHS Sheffield CCG,31/07/2021,C&M-GMS Prem Rates,PRC DELEGATED CO-COMMISSIONING,MILL ROAD SURGERY SHEFFIELD,37537816,674,S35 9XQ
Department of Health,NHS Sheffield CCG,31/07/2021,C&M-GMS QOF Aspiration,PRC DELEGATED CO-COMMISSIONING,MILL ROAD SURGERY SHEFFIELD,37537816,5365.62,S35 9XQ
Department of Health,NHS Sheffield CCG,31/07/2021,C&M-GMS DES Learn Dsblty Hlth Chk,PRC DELEGATED CO-COMMISSIONING,MEDICAL CENTRE CRYSTAL PEAKS,37537825,280,S20 7HZ
Department of Health,NHS Sheffield CCG,31/07/2021,C&M-GMS Global Sum,PRC DELEGATED CO-COMMISSIONING,MEDICAL CENTRE CRYSTAL PEAKS,37537825,50763.05,S20 7HZ
Department of Health,NHS Sheffield CCG,31/07/2021,C&M-GMS PCN DES Participation,PRC DELEGATED CO-COMMISSIONING,MEDICAL CENTRE CRYSTAL PEAKS,37537825,978.29,S20 7HZ
Department of Health,NHS Sheffield CCG,31/07/2021,C&M-GMS PCO Locum Adop/Pat/Mat,PRC DELEGATED CO-COMMISSIONING,MEDICAL CENTRE CRYSTAL PEAKS,37537825,11526.87,S20 7HZ
Department of Health,NHS Sheffield CCG,31/07/2021,C&M-GMS PCO Other,PRC DELEGATED CO-COMMISSIONING,MEDICAL CENTRE CRYSTAL PEAKS,37537825,430.8,S20 7HZ
Department of Health,NHS Sheffield CCG,31/07/2021,C&M-GMS Prem Actual Rent,PRC DELEGATED CO-COMMISSIONING,MEDICAL CENTRE CRYSTAL PEAKS,37537825,17610,S20 7HZ
Department of Health,NHS Sheffield CCG,31/07/2021,C&M-GMS Prem Notional Rent,PRC DELEGATED CO-COMMISSIONING,MEDICAL CENTRE CRYSTAL PEAKS,37537825,270,S20 7HZ
Department of Health,NHS Sheffield CCG,31/07/2021,C&M-GMS Prem Rates,PRC DELEGATED CO-COMMISSIONING,MEDICAL CENTRE CRYSTAL PEAKS,37537825,1073,S20 7HZ
Department of Health,NHS Sheffield CCG,31/07/2021,C&M-GMS QOF Aspiration,PRC DELEGATED CO-COMMISSIONING,MEDICAL CENTRE CRYSTAL PEAKS,37537825,7126.23,S20 7HZ
Department of Health,NHS Sheffield CCG,31/07/2021,C&M-GMS DES Learn Dsblty Hlth Chk,PRC DELEGATED CO-COMMISSIONING,GREYSTONES MEDICAL CENTRE,37537828,140,S11 7BJ
Department of Health,NHS Sheffield CCG,31/07/2021,C&M-GMS Global Sum,PRC DELEGATED CO-COMMISSIONING,GREYSTONES MEDICAL CENTRE,37537828,21603.95,S11 7BJ
Department of Health,NHS Sheffield CCG,31/07/2021,C&M-GMS PCN DES Participation,PRC DELEGATED CO-COMMISSIONING,GREYSTONES MEDICAL CENTRE,37537828,403.29,S11 7BJ
Department of Health,NHS Sheffield CCG,31/07/2021,C&M-GMS PCO Other,PRC DELEGATED CO-COMMISSIONING,GREYSTONES MEDICAL CENTRE,37537828,263,S11 7BJ
Department of Health,NHS Sheffield CCG,31/07/2021,C&M-GMS Prem Notional Rent,PRC DELEGATED CO-COMMISSIONING,GREYSTONES MEDICAL CENTRE,37537828,2885.42,S11 7BJ
Department of Health,NHS Sheffield CCG,31/07/2021,C&M-GMS Prem Rates,PRC DELEGATED CO-COMMISSIONING,GREYSTONES MEDICAL CENTRE,37537828,426,S11 7BJ
Department of Health,NHS Sheffield CCG,31/07/2021,C&M-GMS QOF Aspiration,PRC DELEGATED CO-COMMISSIONING,GREYSTONES MEDICAL CENTRE,37537828,2481.16,S11 7BJ
Department of Health,NHS Sheffield CCG,31/07/2021,C&M-GMS Global Sum,PRC DELEGATED CO-COMMISSIONING,STANNINGTON MEDICAL CENTRE,37537832,27391.22,S6 6BX
Department of Health,NHS Sheffield CCG,31/07/2021,C&M-GMS Prem Notional Rent,PRC DELEGATED CO-COMMISSIONING,STANNINGTON MEDICAL CENTRE,37537832,2625,S6 6BX
Department of Health,NHS Sheffield CCG,31/07/2021,C&M-GMS Prem Rates,PRC DELEGATED CO-COMMISSIONING,STANNINGTON MEDICAL CENTRE,37537832,469,S6 6BX
Department of Health,NHS Sheffield CCG,31/07/2021,C&M-GMS Prem Water Rates,PRC DELEGATED CO-COMMISSIONING,STANNINGTON MEDICAL CENTRE,37537832,202.47,S6 6BX
Department of Health,NHS Sheffield CCG,31/07/2021,C&M-GMS QOF Aspiration,PRC DELEGATED CO-COMMISSIONING,STANNINGTON MEDICAL CENTRE,37537832,3194.14,S6 6BX
Department of Health,NHS Sheffield CCG,31/07/2021,Seconded-Basic Sal-Staff fm oth org,BEREAVEMENT SERVICE,ROTHERHAM DONCASTER AND SOUTH HUMBER NHS FOUNDATION TRUST,37542770,23477,DN4 8QN
Department of Health,NHS Sheffield CCG,31/07/2021,Seconded-Employer's NHI Costs,BEREAVEMENT SERVICE,ROTHERHAM DONCASTER AND SOUTH HUMBER NHS FOUNDATION TRUST,37542770,2499,DN4 8QN
Department of Health,NHS Sheffield CCG,31/07/2021,Seconded-Employer's Pension Costs,BEREAVEMENT SERVICE,ROTHERHAM DONCASTER AND SOUTH HUMBER NHS FOUNDATION TRUST,37542770,3376,DN4 8QN
Department of Health,NHS Sheffield CCG,31/07/2021,C&M-GMS PCN DES Clin Pharmacist,PRC DELEGATED CO-COMMISSIONING,PRIMARY CARE SHEFFIELD LTD,37542793,20184.86,S9 4EU
Department of Health,NHS Sheffield CCG,31/07/2021,C&M-GMS PCN DES Physiotherapist,PRC DELEGATED CO-COMMISSIONING,PRIMARY CARE SHEFFIELD LTD,37542793,4667.5,S9 4EU
Department of Health,NHS Sheffield CCG,31/07/2021,C&M-GMS PCN DES Soc Prescribing,PRC DELEGATED CO-COMMISSIONING,PRIMARY CARE SHEFFIELD LTD,37542793,5844,S9 4EU
Department of Health,NHS Sheffield CCG,31/07/2021,C&M- PCN DES Nursing Associate,PRC DELEGATED CO-COMMISSIONING,DYKES HALL MEDICAL CENTRE,37542804,4699.53,S6 4GQ
Department of Health,NHS Sheffield CCG,31/07/2021,C&M-PCN DES PHARMACY TECHNICIANS,PRC DELEGATED CO-COMMISSIONING,DYKES HALL MEDICAL CENTRE,37542804,3009.5,S6 4GQ
Department of Health,NHS Sheffield CCG,31/07/2021,C&M-PMS PCN DES Clin Pharmacist,PRC DELEGATED CO-COMMISSIONING,DYKES HALL MEDICAL CENTRE,37542804,16257.77,S6 4GQ
Department of Health,NHS Sheffield CCG,31/07/2021,C&M-PMS PCN DES Physiotherapist,PRC DELEGATED CO-COMMISSIONING,DYKES HALL MEDICAL CENTRE,37542804,6494.84,S6 4GQ
Department of Health,NHS Sheffield CCG,31/07/2021,C&M-PMS PCN DES Soc Prescribing,PRC DELEGATED CO-COMMISSIONING,DYKES HALL MEDICAL CENTRE,37542804,2949,S6 4GQ
Department of Health,NHS Sheffield CCG,31/07/2021,Clinical&Medical-Serv Recd-F Trsts,BEREAVEMENT SERVICE,ROTHERHAM NHS FOUNDATION TRUST,37542840,38486,S60 2UD
Department of Health,NHS Sheffield CCG,31/07/2021,C&M- PCN DES Nursing Associate,PRC DELEGATED CO-COMMISSIONING,PRIMARY CARE SHEFFIELD LTD,37542844,1983.15,S9 4EU
Department of Health,NHS Sheffield CCG,31/07/2021,C&M-GMS C&M-APMS PCN DES Physician Assoc,PRC DELEGATED CO-COMMISSIONING,PRIMARY CARE SHEFFIELD LTD,37542844,11712.96,S9 4EU
Department of Health,NHS Sheffield CCG,31/07/2021,C&M-GMS PCN DES Clin Pharmacist,PRC DELEGATED CO-COMMISSIONING,PRIMARY CARE SHEFFIELD LTD,37542844,15748.8,S9 4EU
Department of Health,NHS Sheffield CCG,31/07/2021,C&M-GMS PCN DES Physiotherapist,PRC DELEGATED CO-COMMISSIONING,PRIMARY CARE SHEFFIELD LTD,37542844,8015,S9 4EU
Department of Health,NHS Sheffield CCG,31/07/2021,C&M-GMS PCN DES Soc Prescribing,PRC DELEGATED CO-COMMISSIONING,PRIMARY CARE SHEFFIELD LTD,37542844,2811.28,S9 4EU
Department of Health,NHS Sheffield CCG,31/07/2021,C&M- IIF ACHIEVEMENT,PRC DELEGATED CO-COMMISSIONING,ECCLESFIELD GROUP PRACTICE,37554207,24398.53,S35 9XQ
Department of Health,NHS Sheffield CCG,31/07/2021,C&M-GMS DES Extended Hours Access,PRC DELEGATED CO-COMMISSIONING,ECCLESFIELD GROUP PRACTICE,37554207,5114.88,S35 9XQ
Department of Health,NHS Sheffield CCG,31/07/2021,C&M-GMS Global Sum,PRC DELEGATED CO-COMMISSIONING,ECCLESFIELD GROUP PRACTICE,37554207,74997.89,S35 9XQ
Department of Health,NHS Sheffield CCG,31/07/2021,C&M-GMS PCN DES Clinical Director,PRC DELEGATED CO-COMMISSIONING,ECCLESFIELD GROUP PRACTICE,37554207,2614.27,S35 9XQ
Department of Health,NHS Sheffield CCG,31/07/2021,C&M-GMS PCN DES PCN support,PRC DELEGATED CO-COMMISSIONING,ECCLESFIELD GROUP PRACTICE,37554207,5328,S35 9XQ
Department of Health,NHS Sheffield CCG,31/07/2021,C&M-GMS PCN DES Participation,PRC DELEGATED CO-COMMISSIONING,ECCLESFIELD GROUP PRACTICE,37554207,1441.13,S35 9XQ
Department of Health,NHS Sheffield CCG,31/07/2021,C&M-GMS PCN DES Physiotherapist,PRC DELEGATED CO-COMMISSIONING,ECCLESFIELD GROUP PRACTICE,37554207,4735.75,S35 9XQ
Department of Health,NHS Sheffield CCG,31/07/2021,C&M-GMS PCN DES Soc Prescribing,PRC DELEGATED CO-COMMISSIONING,ECCLESFIELD GROUP PRACTICE,37554207,6830.74,S35 9XQ
Department of Health,NHS Sheffield CCG,31/07/2021,C&M-GMS PCO Other,PRC DELEGATED CO-COMMISSIONING,ECCLESFIELD GROUP PRACTICE,37554207,542,S35 9XQ
Department of Health,NHS Sheffield CCG,31/07/2021,C&M-GMS Prem Notional Rent,PRC DELEGATED CO-COMMISSIONING,ECCLESFIELD GROUP PRACTICE,37554207,6899.17,S35 9XQ
Department of Health,NHS Sheffield CCG,31/07/2021,C&M-GMS Prem Rates,PRC DELEGATED CO-COMMISSIONING,ECCLESFIELD GROUP PRACTICE,37554207,1063,S35 9XQ
Department of Health,NHS Sheffield CCG,31/07/2021,C&M-GMS QOF Aspiration,PRC DELEGATED CO-COMMISSIONING,ECCLESFIELD GROUP PRACTICE,37554207,9899.3,S35 9XQ
Department of Health,NHS Sheffield CCG,31/07/2021,Clinical&Medical-Voluntary Sector,CHILD AND ADOLESCENT MENTAL HEALTH,SHEFFIELD FUTURES,37556351,25600.01,S1 4GE
Department of Health,NHS Sheffield CCG,31/07/2021,Clinical&Medical-Serv Recd-F Trsts,BEREAVEMENT SERVICE,DONCASTER AND BASSETLAW HOSPITALS NHS FOUNDATION TRUST,37567486,2068888,WF3 1WE
Department of Health,NHS Sheffield CCG,31/07/2021,Clinical&Medical-Serv Recd-F Trsts,BEREAVEMENT SERVICE,BARNSLEY HOSPITAL NHS FOUNDATION TRUST,37567559,27307,S75 2EP
Department of Health,NHS Sheffield CCG,31/07/2021,Services From Local Authorities,CONTINUING HEALTHCARE ASSESSMENT & SUPPORT,SHEFFIELD CITY COUNCIL,37567565,50000,S1 2HH
Department of Health,NHS Sheffield CCG,31/07/2021,Clinical&Medical-Independent Sector,Mental Health Services - S117 Mental Health,MOORVILLE RESIDENTIAL,37587538,36553.96,S10 5FA
Department of Health,NHS Sheffield CCG,31/07/2021,Cont Care-Learning Disab(<65),CHC ADULT FULLY FUNDED,MOORVILLE RESIDENTIAL,37587538,9171.66,S10 5FA
Department of Health,NHS Sheffield CCG,31/07/2021,Cont Care-Learning Disab(<65),CHC ADULT JOINT FUNDED,MOORVILLE RESIDENTIAL,37587538,4333.18,S10 5FA
Department of Health,NHS Sheffield CCG,31/07/2021,Cont Care-Mental Health (<65),CHC ADULT JOINT FUNDED,MOORVILLE RESIDENTIAL,37587538,506.23,S10 5FA
Department of Health,NHS Sheffield CCG,31/07/2021,Clinical&Medical-Serv Recd-F Trsts,BEREAVEMENT SERVICE,SHEFFIELD TEACHING HOSPITALS NHS FOUNDATION TRUST,37587615,49921,S5 7AU
Department of Health,NHS Sheffield CCG,31/07/2021,Participation Fees,BEREAVEMENT SERVICE,BARNSLEY HOSPITAL NHS FOUNDATION TRUST,37587635,1126601,S75 2EP
Department of Health,NHS Sheffield CCG,31/07/2021,C&M-GMS C&M-APMS PCN DES Physician Assoc,PRC DELEGATED CO-COMMISSIONING,PRIMARY CARE SHEFFIELD LTD,37587705,8539.18,S9 4EU
Department of Health,NHS Sheffield CCG,31/07/2021,C&M-GMS PCN DES Clin Pharmacist,PRC DELEGATED CO-COMMISSIONING,PRIMARY CARE SHEFFIELD LTD,37587705,9471.5,S9 4EU
Department of Health,NHS Sheffield CCG,31/07/2021,C&M-GMS PCN DES Physiotherapist,PRC DELEGATED CO-COMMISSIONING,PRIMARY CARE SHEFFIELD LTD,37587705,5176.17,S9 4EU
Department of Health,NHS Sheffield CCG,31/07/2021,C&M-GMS PCN DES Soc Prescribing,PRC DELEGATED CO-COMMISSIONING,PRIMARY CARE SHEFFIELD LTD,37587705,2333.33,S9 4EU
Department of Health,NHS Sheffield CCG,31/07/2021,C&M-PCN DES PHARMACY TECHNICIANS,PRC DELEGATED CO-COMMISSIONING,PRIMARY CARE SHEFFIELD LTD,37587705,5220.6,S9 4EU
Department of Health,NHS Sheffield CCG,31/07/2021,C&M-PCN DES Trainee Nursing Associate,PRC DELEGATED CO-COMMISSIONING,PRIMARY CARE SHEFFIELD LTD,37587705,1890.5,S9 4EU
Department of Health,NHS Sheffield CCG,31/07/2021,C&M-GMS C&M-APMS PCN DES Physician Assoc,PRC DELEGATED CO-COMMISSIONING,PRIMARY CARE SHEFFIELD LTD,37587733,4355.7,S9 4EU
Department of Health,NHS Sheffield CCG,31/07/2021,C&M-GMS PCN DES Clin Pharmacist,PRC DELEGATED CO-COMMISSIONING,PRIMARY CARE SHEFFIELD LTD,37587733,10418.56,S9 4EU
Department of Health,NHS Sheffield CCG,31/07/2021,C&M-GMS PCN DES Home/RR paramedic,PRC DELEGATED CO-COMMISSIONING,PRIMARY CARE SHEFFIELD LTD,37587733,4558.85,S9 4EU
Department of Health,NHS Sheffield CCG,31/07/2021,C&M-GMS PCN DES Physiotherapist,PRC DELEGATED CO-COMMISSIONING,PRIMARY CARE SHEFFIELD LTD,37587733,4735.75,S9 4EU
Department of Health,NHS Sheffield CCG,31/07/2021,C&M-GMS PCN DES Soc Prescribing,PRC DELEGATED CO-COMMISSIONING,PRIMARY CARE SHEFFIELD LTD,37587733,4272.8,S9 4EU
Department of Health,NHS Sheffield CCG,31/07/2021,C&M-PCN DES OCCUPATIONAL THERAPISTS,PRC DELEGATED CO-COMMISSIONING,PRIMARY CARE SHEFFIELD LTD,37587733,4267.1,S9 4EU
Department of Health,NHS Sheffield CCG,31/07/2021,C&M-PCN DES PHARMACY TECHNICIANS,PRC DELEGATED CO-COMMISSIONING,PRIMARY CARE SHEFFIELD LTD,37587733,3009.5,S9 4EU
Department of Health,NHS Sheffield CCG,31/07/2021,C&M-GMS Prem Other,PRC DELEGATED CO-COMMISSIONING,NHS ENGLAND,37587760,641.46,WF3 1WE
Department of Health,NHS Sheffield CCG,31/07/2021,Contract- Refuse & Clinical Waste,PRC DELEGATED CO-COMMISSIONING,NHS ENGLAND,37587760,99621.39,WF3 1WE
Department of Health,NHS Sheffield CCG,31/07/2021,C&M-APMS DES Extended Hours Access,GP FORWARD VIEW,PRIMARY CARE SHEFFIELD LTD,37587802,309441.67,S12 3GH
Department of Health,NHS Sheffield CCG,31/07/2021,C&M-GMS LES Basket of Procedures,LOCAL ENHANCED SERVICES,PRIMARY CARE SHEFFIELD LTD,37587808,53558.33,S12 3GH
Department of Health,NHS Sheffield CCG,31/07/2021,C&M-GMS Global Sum,PRC DELEGATED CO-COMMISSIONING,BEAUCHIEF MEDICAL PRACTICE,37592153,51979.35,S8 0BJ
Department of Health,NHS Sheffield CCG,31/07/2021,C&M-GMS Prem Notional Rent,PRC DELEGATED CO-COMMISSIONING,BEAUCHIEF MEDICAL PRACTICE,37592153,3770.84,S8 0BJ
Department of Health,NHS Sheffield CCG,31/07/2021,C&M-GMS Prem Rates,PRC DELEGATED CO-COMMISSIONING,BEAUCHIEF MEDICAL PRACTICE,37592153,1409,S8 0BJ
Department of Health,NHS Sheffield CCG,31/07/2021,C&M-GMS QOF Aspiration,PRC DELEGATED CO-COMMISSIONING,BEAUCHIEF MEDICAL PRACTICE,37592153,5984.27,S8 0BJ
